Workbook

Sheet Accueil
B2: Comparateur de stratégies pour
N3: Version : | O3: 1.26.1 | P3: 2022-11-27
B6: Saisie des paramètres course : | N6: Ctrl+Maj+F1 | S6: Assurez-vous d'utiliser un fichier Excel qui accepte les macros (xlm) A l'ouverture répondez oui en cas de question sur la sécurité et pour activer les macros. Plus d'info dans notice utilisation.
B9: saisies obligatoires
C10: Circuit / Piste : | H10: Longueur : | I10: =VLOOKUP(D10,grille!K19:L117,2,FALSE) -> 
C12: Tours ou temps : | D12: Tours | E12: 0 | F12: 00:00:00
B15: saisies obligatoires
C16: Gommes disponibles | E16: Utilisation : | F16: libre | H16: Autonomie max : | J16: 0 | K16: 100
E18: Utilisation : | F18: libre | H18: Vitesse ravitaillement : | J18: 0
E20: Utilisation : | F20: libre | H20: Jauge initiale : | J20: 100
B23: saisies obligatoires
B28: Données informatives, saisies facultatives
C29: Catégorie : | E29: Modèle : | S29: contact administrateur
D31: Taux d'usure gommes : | F31: X1 | G31: Taux consommation : | I31: X1 | S31: bigbang.contact@orange.fr
A89: Plasdt84

Sheet Strat 1
A1: RAPPEL DONNES | X1: Cliquez sur les cellules pour obtenir des informations complémentaires.
C2: Circuit / Piste : | E2: =Accueil!D10 -> 0 | H2: Longueur : | I2: =Accueil!I10 ->  | J2: Durée : | K2: =Accueil!E12 -> 0 | L2: =Accueil!F12 -> 00:00:00
C3: Pit pneus + refuel complet | F3: =PIT!S11 ->  | M3: =L2 -> 00:00:00 | N3: 00:00:30 | O3: =M3+F8+N3 -> 00:02:40
C4: Infos paramètres course | E4: Pit pneus : | F4: Temps cumulé de refuel | H4: Autonomie | I4: Ravitaillement | J4: Fuel départ | K4: Conso. | L4: Usure | M4: Catégorie | N4: Véhicule modèle :
E5: =PIT!S9 -> 10 | F5: =G5*L11 ->  | G5: =U26 ->  | H5: =Accueil!J16 -> 0 | I5: =PIT!S19 -> 0 | J5: =Accueil!J20 -> 100 | K5: =Accueil!I31 -> X1 | L5: =Accueil!F31 -> X1 | M5: =Accueil!D29 -> 0 | N5: =Accueil!F29 -> 0
C7: Infos pneus | E7: =chronos!C10 -> 0 | F7: Tps moyen | G7: Monte | I7: =chronos!C12 -> 0 | J7: Tps moyen | K7: Monte | M7: =chronos!C14 -> 0 | N7: Tps moyen | O7: Monte | Q7: sans
C8: Pic Performance | E8: =chronos!G10 -> 8 | F8: =chronos!E10 -> 00:02:10 | G8: =Accueil!F16 -> libre | H8: Pic P | I8: =chronos!G12 -> 12 | J8: =chronos!E12 -> 00:02:12 | K8: =Accueil!F18 -> libre | L8: Pic P | M8: =chronos!G14 -> 16 | N8: =chronos!E14 -> 02,14,0 | O8: =Accueil!F20 -> libre | Q8: =F8 -> 00:02:10
C10: volume | E10: =Accueil!K16 -> 100 | F10: soit | G10: consommation | H10: ='ajust éco'!D9*'Strat 1'!I2 ->  | I10: 1 tour | J10: =(H10*1)/E10 ->  | K10: Jauge initiale : | M10: =Accueil!J20 -> 100
C11: ENTREE / SORTIE : | E11: =PIT!S9-PIT!S7 -> 5.5 | F11: démonte/monte pneus : | H11: =PIT!S7 -> 4.5 | I11: Tps remplissage | K11: 1 | L11: =PIT!S15 ->  | U11: =H5 -> 0 | V11: =I2*H5 -> 
F13: Au moins un type de gomme obligatoire n'est pas utilisé !
T14: total nbr de tours
E15: Départ | G15: Pit 1 | I15: Pit 2 | K15: Pit 3 | M15: Pit 4 | O15: Pit 5 | T15: =R15+P15+N15+L15+J15+H15+F15 -> 0
B16: Pertes de temps total : purge pénalité... | F16: =VLOOKUP(E23,chronos!$Q$28:'chronos'!$R$30,2,FALSE) -> 8 | H16: =VLOOKUP(G23,chronos!$Q$28:'chronos'!$R$30,2,FALSE) -> 8 | J16: =VLOOKUP(I23,chronos!$Q$28:'chronos'!$R$30,2,FALSE) -> 8 | L16: =VLOOKUP(K23,chronos!$Q$28:'chronos'!$R$30,2,FALSE) -> 8 | N16: =VLOOKUP(M23,chronos!$Q$28:'chronos'!$R$30,2,FALSE) -> 8 | P16: =VLOOKUP(O23,chronos!$Q$28:'chronos'!$R$30,2,FALSE) -> 8 | Q16: 7 | R16: =Q16*R17 -> 0
C17: 00:00:00 | F17: =F15*$I$2 ->  | G17: =IF(ISERROR(F16<F15)="VRAI","",F16<F15) -> FALSE | H17: =H15*$I$2 ->  | I17: =IF(ISERROR(H16<H15)="VRAI","",H16<H15) -> FALSE | J17: =J15*$I$2 ->  | K17: =IF(ISERROR(J16<J15)="VRAI","",J16<J15) -> FALSE | L17: =L15*$I$2 ->  | M17: =IF(ISERROR(L16<L15)="VRAI","",L16<L15) -> FALSE | N17: =N15*$I$2 ->  | O17: =IF(ISERROR(N16<N15)="VRAI","",N16<N15) -> FALSE | P17: =P15*$I$2 ->  | Q17: =IF(ISERROR(P16<P15)="VRAI","",P16<P15) -> FALSE | R17: =COUNTIF(G17:Q17,"VRAI") -> 0
F19: =F15 -> 0 | G19: =F15*I56 ->  | H19: =F19+H15 -> 0 | I19: =(I56*H15)+G19 ->  | J19: =H19+J15 -> 0 | K19: =(J15*I56)+I19 ->  | L19: =J19+L15 -> 0 | M19: =L15*I56+K19 ->  | N19: =L19+N15 -> 0 | O19: =(N15*I56)+M19 ->  | P19: =N19+P15 -> 0 | Q19: =P19+R15 -> 0 | R19: =(P15*I56)+O19 -> 
G21: =F15 -> 0 | I21: =H15+F15 -> 0 | K21: =J15+H15+F15 -> 0 | M21: =L15+J15+H15+F15 -> 0 | O21: =N15+L15+J15+H15+F15 -> 0 | Q21: Dépassement nbr de tours
B23: Gommes | Q23: Dépassement durée course >1 tour
E25: =M10 -> 100 | G25: =G27*100 ->  | I25: =I27*100 ->  | K25: =K27*100 ->  | M25: =M27*100 ->  | O25: =O27*100 ->  | T25: refuel en litres | U25: refuel en tours
B26: E42 conso L/km / F42 besoin | E26: =VLOOKUP(E32,'ajust éco'!$B$9:$G$17,3,FALSE) ->  | F26: =(F17*E26) ->  | G26: =VLOOKUP(G32,'ajust éco'!$B$9:$G$17,3,FALSE) ->  | H26: =(H17*G26) ->  | I26: =VLOOKUP(I32,'ajust éco'!$B$9:$G$17,3,FALSE) ->  | J26: =(J17*I26) ->  | K26: =VLOOKUP(K32,'ajust éco'!$B$9:$G$17,3,FALSE) ->  | L26: =(L17*K26) ->  | M26: =VLOOKUP(M32,'ajust éco'!$B$9:$G$17,3,FALSE) ->  | N26: =(N17*M26) ->  | O26: =VLOOKUP(O32,'ajust éco'!$B$9:$G$17,3,FALSE) ->  | P26: =(P17*O26) ->  | T26: =(F35+H35+J35+L35+N35+P35)-E25 ->  | U26: =T26/$H$10 -> 
B27: niveau | E27: =E25/100 -> 1 | F27: =(E28*$H$5)/1 ->  | G27: =MIN(100%,(G30+(E27-E28))) ->  | I27: =MIN(100%,(I30+(G27-G28))) ->  | K27: =MIN(100%,(K30+(I27-I28))) ->  | M27: =MIN(100%,(M30+(K27-K28))) ->  | O27: =MIN(100%,(O30+(M27-M28))) -> 
C28: calcul besoin | E28: =(F15*E35)/100 ->  | F28: =IF(E28>E27,"T","") ->  | G28: =(SUM(H15*G35/100)) ->  | H28: =IF(G28>100%,"T","") ->  | I28: =(SUM(J15*I35/100)) ->  | J28: =IF(I28>100%,"T","") ->  | K28: =(SUM(L15*K35/100)) ->  | L28: =IF(K28>100%,"T","") ->  | M28: =(SUM(N15*M35/100)) ->  | N28: =IF(M28>100%,"T","") ->  | O28: =(SUM(P15*O35/100)) ->  | P28: =IF(O28>100%,"T","") ->  | Q28: Estimation cumul perte de temps conduite éco
B29: complément/jauge
F30: =E25/H10 ->  | G30: =G28 ->  | H30: =(G28*$H$5)/1 ->  | I30: =I28 ->  | J30: =(I28*$H$5)/1 ->  | K30: =K28 ->  | L30: =(K28*$H$5)/1 ->  | M30: =M28 ->  | N30: =(M28*$H$5)/1 ->  | O30: =O28 ->  | P30: =(O28*$H$5)/1 -> 
B32: Eco fuel | E32: 0 | G32: 0 | I32: 0 | K32: 0 | M32: 0 | O32: 0 | Q32: =U38 -> 00:00:00
C35: conso L/tour avec éco | E35: =E26*$I$2 ->  | F35: =E35*F15 ->  | G35: =G26*$I$2 ->  | H35: =G35*H15 ->  | I35: =I26*$I$2 ->  | J35: =I35*J15 ->  | K35: =K26*$I$2 ->  | L35: =K35*L15 ->  | M35: =M26*$I$2 ->  | N35: =M35*N15 ->  | O35: =O26*$I$2 ->  | P35: =O35*P15 ->  | T35: =E7 -> 0 | U35: =F8 -> 00:02:10
C36: calcul perte temps | E36: =VLOOKUP(E32,'ajust éco'!$B$9:$L$17,11,"faux") -> 0 | G36: =VLOOKUP(G32,'ajust éco'!$B$9:$L$17,11,"faux") -> 0 | I36: =VLOOKUP(I32,'ajust éco'!$B$9:$L$17,11,"faux") -> 0 | K36: =VLOOKUP(K32,'ajust éco'!$B$9:$L$17,11,"faux") -> 0 | M36: =VLOOKUP(M32,'ajust éco'!$B$9:$L$17,11,"faux") -> 0 | O36: =VLOOKUP(O32,'ajust éco'!$B$9:$L$17,11,"faux") -> 0 | T36: =I7 -> 0 | U36: =J8 -> 00:02:12
E37: =E25/E35 ->  | G37: =G25/G35 ->  | I37: =I25/I35 ->  | K37: =K25/K35 ->  | M37: =M25/M35 ->  | O37: =O25/O35 ->  | T37: =M7 -> 0 | U37: =N8 -> 02,14,0
C38: Calcul augmentation tps/tour en fonction de la conduite éco | E38: =E36*F15 -> 0 | G38: =G36*H15 -> 0 | I38: =I36*J15 -> 0 | K38: =K36*L15 -> 0 | M38: =M36*N15 -> 0 | O38: =O36*P15 -> 0 | Q38: nbr tours /type pneus | R38: chronos | T38: tps total / type pneu | U38: =V38/86400 -> 00:00:00 | V38: =E38+G38+I38+K38+M38+O38 -> 0
C39: S soft | E39: =SUMIF(E23,"S soft",F15) -> 0 | G39: =SUMIF(G23,"S soft",H15) -> 0 | H39: =IF(G39>0,1,0) -> 0 | I39: =SUMIF(I23,"S soft",J15) -> 0 | J39: =IF(I39>0,1,0) -> 0 | K39: =SUMIF(K23,"S soft",L15) -> 0 | L39: =IF(K39>0,1,0) -> 0 | M39: =SUMIF(M23,"S soft",N15) -> 0 | N39: =IF(M39>0,1,0) -> 0 | O39: =SUMIF(O23,"S soft",P15) -> 0 | P39: =IF(O39>0,1,0) -> 0 | Q39: =E39+G39+I39+K39+M39+O39 -> 0 | R39: =VLOOKUP(C39,$T$35:$U$37,2,FALSE) ->  | T39: =IFERROR((Q39)*R39,0) -> 0
C40: soft | E40: =SUMIF(E23,"soft",F15) -> 0 | G40: =SUMIF(G23,"soft",H15) -> 0 | H40: =IF(G40>0,1,0) -> 0 | I40: =SUMIF(I23,"soft",J15) -> 0 | J40: =IF(I40>0,1,0) -> 0 | K40: =SUMIF(K23,"soft",L15) -> 0 | L40: =IF(K40>0,1,0) -> 0 | M40: =SUMIF(M23,"soft",N15) -> 0 | N40: =IF(M40>0,1,0) -> 0 | O40: =SUMIF(O23,"soft",P15) -> 0 | P40: =IF(O40>0,1,0) -> 0 | Q40: 0 | R40: =VLOOKUP(C40,$T$35:$U$37,2,FALSE) ->  | T40: =IFERROR((Q40)*R40,0) -> 0
C41: médium | E41: =SUMIF(E23,"médium",F15) -> 0 | G41: =SUMIF(G23,"médium",H15) -> 0 | H41: =IF(G41>0,1,0) -> 0 | I41: =SUMIF(I23,"médium",J15) -> 0 | J41: =IF(I41>0,1,0) -> 0 | K41: =SUMIF(K23,"médium",L15) -> 0 | L41: =IF(K41>0,1,0) -> 0 | M41: =SUMIF(M23,"médium",N15) -> 0 | N41: =IF(M41>0,1,0) -> 0 | O41: =SUMIF(O23,"médium",P15) -> 0 | P41: =IF(O41>0,1,0) -> 0 | Q41: 0 | R41: =VLOOKUP(C41,$T$35:$U$37,2,FALSE) ->  | T41: =IFERROR((Q41)*R41,0) -> 0
C42: hard | E42: =SUMIF(E23,"hard",F15) -> 0 | G42: =SUMIF(G23,"hard",H15) -> 0 | H42: =IF(G42>0,1,0) -> 0 | I42: =SUMIF(I23,"hard",J15) -> 0 | J42: =IF(I42>0,1,0) -> 0 | K42: =SUMIF(K23,"hard",L15) -> 0 | L42: =IF(K42>0,1,0) -> 0 | M42: =SUMIF(M23,"hard",N15) -> 0 | N42: =IF(M42>0,1,0) -> 0 | O42: =SUMIF(O23,"hard",P15) -> 0 | P42: =IF(O42>0,1,0) -> 0 | Q42: 0 | R42: =VLOOKUP(C42,$T$35:$U$37,2,FALSE) ->  | T42: =IFERROR(Q42*R42,0) -> 0
C43: (sans) change de pneus | E43: =SUMIF(E23,"sans",F15) -> 0 | G43: =SUMIF(G23,"sans",H15) -> 0 | I43: =SUMIF(I23,"sans",J15) -> 0 | K43: =SUMIF(K23,"sans",L15) -> 0 | M43: =SUMIF(M23,"sans",N15) -> 0 | O43: =SUMIF(O23,"sans",P15) -> 0 | Q43: 0 | R43: =Q8 -> 0.00150462963 | T43: =IFERROR(Q43*R43,0) -> 0 | U43: cumul pertes de temps
C44: inter | E44: =SUMIF(E23,"inter",F15) -> 0 | G44: =SUMIF(G23,"inter",H15) -> 0 | H44: =IF(G44>0,1,0) -> 0 | I44: =SUMIF(I23,"inter",J15) -> 0 | J44: =IF(I44>0,1,0) -> 0 | K44: =SUMIF(K23,"inter",L15) -> 0 | L44: =IF(K44>0,1,0) -> 0 | M44: =SUMIF(M23,"inter",N15) -> 0 | N44: =IF(M44>0,1,0) -> 0 | O44: =SUMIF(O23,"inter",P15) -> 0 | P44: =IF(O44>0,1,0) -> 0 | Q44: 0 | R44: =VLOOKUP(C44,$T$35:$U$37,2,FALSE) ->  | T44: =IFERROR(Q44*R44,0) -> 0
C45: pluie | E45: =SUMIF(E23,"pluie",F15) -> 0 | G45: =SUMIF(G23,"pluie",H15) -> 0 | H45: =IF(G45>0,1,0) -> 0 | I45: =SUMIF(I23,"pluie",J15) -> 0 | J45: =IF(I45>0,1,0) -> 0 | K45: =SUMIF(K23,"pluie",L15) -> 0 | L45: =IF(K45>0,1,0) -> 0 | M45: =SUMIF(M23,"pluie",N15) -> 0 | N45: =IF(M45>0,1,0) -> 0 | O45: =SUMIF(O23,"pluie",P15) -> 0 | P45: =IF(O45>0,1,0) -> 0 | Q45: 0 | R45: =VLOOKUP(C45,$T$35:$U$37,2,FALSE) ->  | T45: =IFERROR(Q45*R45,0) -> 0 | U45: =U51+V38+C17 ->  | V45: =U45/86400 -> 
C46: Nbr de changements de pneu | H46: =SUM(H39:H45) -> 0 | J46: =SUM(J39:J45) -> 0 | L46: =SUM(L39:L45) -> 0 | N46: =SUM(N39:N45) -> 0 | P46: =SUM(P39:P45) -> 0 | Q46: =P46+N46+L46+J46+H46+F46 -> 0 | T46: =SUM(T39:T45) -> 0 | U46: =U45/G54 ->  | V46: =U46/86400 -> 
C47: Nbr de refuel | F47: =IF(H26>0,1,0) ->  | H47: =IF(J26>0,1,0) ->  | J47: =IF(L26>0,1,0) ->  | L47: =IF(N26>0,1,0) ->  | N47: =IF(P26>0,1,0) ->  | P47: =IF(Q26>0,1,0) -> 0 | Q47: =P47+N47+L47+J47+H47+F47 -> 
T48: tps échange pneu : | U48: =Q46*H11 -> 0 | V48: =U48/86400 -> 00:00:00
T49: tps refuel : | U49: =$U$26*$L$11 -> 
Q50: somme max refuel ou échange pneus : | U50: =MAX(Q46:Q47) ->  | V50: =E11/86400 -> 00:00:05.500
Q51: Temps total arrêt au stand : | U51: =(U50*E11)+U48+U49 ->  | V51: =U51/86400 -> 
B53: Récapitulatif stratégie 1
G54: =T15 -> 0 | H54: en | I54: =G54*I56 ->  | J54: Distance totale : | L54: =G54*I2 ->  | M54: annotations libres
B56: Nombre de pits : | E56: =U50 ->  | F56: Tps moyen / tour avec pits : | I56: =(T46+V45)/T15 ->  | J56: Vitesse moyenne : | L56: =comparateur!R15 -> 
B58: Cumul tps pit(s) : | E58: =V51 ->  | F58: Consommation moyenne : | I58: =I10 -> 1 tour | J58: =J10 -> 
C69: Utilisation | E69: =E7 -> 0 | F69: =I7 -> 0 | G69: =M7 -> 0
E70: =G8 -> libre | F70: =K8 -> libre | G70: =O8 -> libre
C71: Obligatoire(s) | E71: =IF(E70="obligatoire",E69,"libre") -> libre | F71: =IF(F70="obligatoire",F69,"libre") -> libre | G71: =IF(G70="obligatoire",G69,"libre") -> libre
P72: FALSE
C73: Utilisés | E73: =E23 -> 0 | F73: =G23 -> 0 | G73: =I23 -> 0 | H73: =K23 -> 0 | I73: =M23 -> 0 | J73: =O23 -> 0 | K73: libre | L73: =ISNUMBER(MATCH(E71,$E$73:$K$73,0)) -> TRUE | M73: =ISNUMBER(MATCH(F71,$E$73:$K$73,0)) -> TRUE | N73: TRUE | P73: =COUNTIF(L73:N73,"FAUX") -> 0

Sheet Strat 2
A1: RAPPEL DONNES | X1: Cliquez sur les cellules pour obtenir des informations complémentaires.
C2: Circuit / Piste : | E2: =Accueil!D10 -> 0 | H2: Longueur : | I2: =Accueil!I10 ->  | J2: Durée : | K2: =Accueil!E12 -> 0 | L2: =Accueil!F12 -> 00:00:00
C3: Pit pneus + refuel complet | F3: =PIT!S11 ->  | M3: =L2 -> 00:00:00 | N3: 00:00:30 | O3: =M3+F8+N3 -> 00:02:40
C4: Infos paramètres course | E4: Pit pneus : | F4: Temps cumulé de refuel | H4: Autonomie | I4: Ravitaillement | J4: Fuel départ | K4: Conso. | L4: Usure | M4: Catégorie | N4: Véhicule modèle :
E5: =PIT!S9 -> 10 | F5: =G5*L11 ->  | G5: =U26 ->  | H5: =Accueil!J16 -> 0 | I5: =PIT!S19 -> 0 | J5: =Accueil!J20 -> 100 | K5: =Accueil!I31 -> X1 | L5: =Accueil!F31 -> X1 | M5: =Accueil!D29 -> 0 | N5: =Accueil!F29 -> 0
C7: Infos pneus | E7: =chronos!C10 -> 0 | F7: Tps moyen | G7: Monte | I7: =chronos!C12 -> 0 | J7: Tps moyen | K7: Monte | M7: =chronos!C14 -> 0 | N7: Tps moyen | O7: Monte | Q7: sans
C8: Pic Performance | E8: =chronos!G10 -> 8 | F8: =chronos!E10 -> 00:02:10 | G8: =Accueil!F16 -> libre | H8: Pic P | I8: =chronos!G12 -> 12 | J8: =chronos!E12 -> 00:02:12 | K8: =Accueil!F18 -> libre | L8: Pic P | M8: =chronos!G14 -> 16 | N8: =chronos!E14 -> 02,14,0 | O8: =Accueil!F20 -> libre | Q8: =F8 -> 00:02:10
C10: volume | E10: =Accueil!K16 -> 100 | F10: soit | G10: consommation | H10: ='ajust éco'!D9*'Strat 2'!I2 ->  | I10: 1 tour | J10: =(H10*1)/E10 ->  | K10: Jauge initiale : | M10: =Accueil!J20 -> 100
C11: ENTREE / SORTIE : | E11: =PIT!S9-PIT!S7 -> 5.5 | F11: démonte/monte pneus : | H11: =PIT!S7 -> 4.5 | I11: Tps remplissage | K11: 1 | L11: =PIT!S15 ->  | U11: =H5 -> 0 | V11: =I2*H5 -> 
F13: Au moins un type de gomme obligatoire n'est pas utilisé !
T14: total nbr de tours
E15: Départ | G15: Pit 1 | I15: Pit 2 | K15: Pit 3 | M15: Pit 4 | O15: Pit 5 | T15: =R15+P15+N15+L15+J15+H15+F15 -> 0
B16: Pertes de temps total : purge pénalité... | F16: =VLOOKUP(E23,chronos!$Q$28:'chronos'!$R$30,2,FALSE) -> 8 | H16: =VLOOKUP(G23,chronos!$Q$28:'chronos'!$R$30,2,FALSE) -> 8 | J16: =VLOOKUP(I23,chronos!$Q$28:'chronos'!$R$30,2,FALSE) -> 8 | L16: =VLOOKUP(K23,chronos!$Q$28:'chronos'!$R$30,2,FALSE) -> 8 | N16: =VLOOKUP(M23,chronos!$Q$28:'chronos'!$R$30,2,FALSE) -> 8 | P16: =VLOOKUP(O23,chronos!$Q$28:'chronos'!$R$30,2,FALSE) -> 8 | Q16: 7 | R16: =Q16*R17 -> 0
C17: 00:00:00 | F17: =F15*$I$2 ->  | G17: =IF(ISERROR(F16<F15)="VRAI","",F16<F15) -> FALSE | H17: =H15*$I$2 ->  | I17: =IF(ISERROR(H16<H15)="VRAI","",H16<H15) -> FALSE | J17: =J15*$I$2 ->  | K17: =IF(ISERROR(J16<J15)="VRAI","",J16<J15) -> FALSE | L17: =L15*$I$2 ->  | M17: =IF(ISERROR(L16<L15)="VRAI","",L16<L15) -> FALSE | N17: =N15*$I$2 ->  | O17: =IF(ISERROR(N16<N15)="VRAI","",N16<N15) -> FALSE | P17: =P15*$I$2 ->  | Q17: =IF(ISERROR(P16<P15)="VRAI","",P16<P15) -> FALSE | R17: =COUNTIF(G17:Q17,"VRAI") -> 0
F19: =F15 -> 0 | G19: =F15*I56 ->  | H19: =F19+H15 -> 0 | I19: =(I56*H15)+G19 ->  | J19: =H19+J15 -> 0 | K19: =(J15*I56)+I19 ->  | L19: =J19+L15 -> 0 | M19: =L15*I56+K19 ->  | N19: =L19+N15 -> 0 | O19: =(N15*I56)+M19 ->  | P19: =N19+P15 -> 0 | Q19: =P19+R15 -> 0 | R19: =(P15*I56)+O19 -> 
G21: =F15 -> 0 | I21: =H15+F15 -> 0 | K21: =J15+H15+F15 -> 0 | M21: =L15+J15+H15+F15 -> 0 | O21: =N15+L15+J15+H15+F15 -> 0 | Q21: Dépassement nbr de tours
B23: Gommes | Q23: Dépassement durée course >1 tour
E25: =M10 -> 100 | G25: =G27*100 ->  | I25: =I27*100 ->  | K25: =K27*100 ->  | M25: =M27*100 ->  | O25: =O27*100 ->  | T25: refuel en litres | U25: refuel en tours
B26: E42 conso L/km / F42 besoin | E26: =VLOOKUP(E32,'ajust éco'!$B$9:$G$17,3,FALSE) ->  | F26: =(F17*E26) ->  | G26: =VLOOKUP(G32,'ajust éco'!$B$9:$G$17,3,FALSE) ->  | H26: =(H17*G26) ->  | I26: =VLOOKUP(I32,'ajust éco'!$B$9:$G$17,3,FALSE) ->  | J26: =(J17*I26) ->  | K26: =VLOOKUP(K32,'ajust éco'!$B$9:$G$17,3,FALSE) ->  | L26: =(L17*K26) ->  | M26: =VLOOKUP(M32,'ajust éco'!$B$9:$G$17,3,FALSE) ->  | N26: =(N17*M26) ->  | O26: =VLOOKUP(O32,'ajust éco'!$B$9:$G$17,3,FALSE) ->  | P26: =(P17*O26) ->  | T26: =(F35+H35+J35+L35+N35+P35)-E25 ->  | U26: =T26/$H$10 -> 
B27: niveau | E27: =E25/100 -> 1 | F27: =(E28*$H$5)/1 ->  | G27: =MIN(100%,(G30+(E27-E28))) ->  | I27: =MIN(100%,(I30+(G27-G28))) ->  | K27: =MIN(100%,(K30+(I27-I28))) ->  | M27: =MIN(100%,(M30+(K27-K28))) ->  | O27: =MIN(100%,(O30+(M27-M28))) -> 
C28: calcul besoin | E28: =(F15*E35)/100 ->  | F28: =IF(E28>E27,"T","") ->  | G28: =(SUM(H15*G35/100)) ->  | H28: =IF(G28>100%,"T","") ->  | I28: =(SUM(J15*I35/100)) ->  | J28: =IF(I28>100%,"T","") ->  | K28: =(SUM(L15*K35/100)) ->  | L28: =IF(K28>100%,"T","") ->  | M28: =(SUM(N15*M35/100)) ->  | N28: =IF(M28>100%,"T","") ->  | O28: =(SUM(P15*O35/100)) ->  | P28: =IF(O28>100%,"T","") ->  | Q28: Estimation cumul perte de temps conduite éco
B29: complément/jauge
F30: =E25/H10 ->  | G30: =G28 ->  | H30: =(G28*$H$5)/1 ->  | I30: =I28 ->  | J30: =(I28*$H$5)/1 ->  | K30: =K28 ->  | L30: =(K28*$H$5)/1 ->  | M30: =M28 ->  | N30: =(M28*$H$5)/1 ->  | O30: =O28 ->  | P30: =(O28*$H$5)/1 -> 
B32: Eco fuel | E32: 0 | G32: 0 | I32: 0 | K32: 0 | M32: 0 | O32: 0 | Q32: =U38 -> 00:00:00
C35: conso L/tour avec éco | E35: =E26*$I$2 ->  | F35: =E35*F15 ->  | G35: =G26*$I$2 ->  | H35: =G35*H15 ->  | I35: =I26*$I$2 ->  | J35: =I35*J15 ->  | K35: =K26*$I$2 ->  | L35: =K35*L15 ->  | M35: =M26*$I$2 ->  | N35: =M35*N15 ->  | O35: =O26*$I$2 ->  | P35: =O35*P15 ->  | T35: =E7 -> 0 | U35: =F8 -> 00:02:10
C36: calcul perte temps | E36: =VLOOKUP(E32,'ajust éco'!$B$9:$L$17,11,"faux") -> 0 | G36: =VLOOKUP(G32,'ajust éco'!$B$9:$L$17,11,"faux") -> 0 | I36: =VLOOKUP(I32,'ajust éco'!$B$9:$L$17,11,"faux") -> 0 | K36: =VLOOKUP(K32,'ajust éco'!$B$9:$L$17,11,"faux") -> 0 | M36: =VLOOKUP(M32,'ajust éco'!$B$9:$L$17,11,"faux") -> 0 | O36: =VLOOKUP(O32,'ajust éco'!$B$9:$L$17,11,"faux") -> 0 | T36: =I7 -> 0 | U36: =J8 -> 00:02:12
E37: =E25/E35 ->  | G37: =G25/G35 ->  | I37: =I25/I35 ->  | K37: =K25/K35 ->  | M37: =M25/M35 ->  | O37: =O25/O35 ->  | T37: =M7 -> 0 | U37: =N8 -> 02,14,0
C38: Calcul augmentation tps/tour en fonction de la conduite éco | E38: =E36*F15 -> 0 | G38: =G36*H15 -> 0 | I38: =I36*J15 -> 0 | K38: =K36*L15 -> 0 | M38: =M36*N15 -> 0 | O38: =O36*P15 -> 0 | Q38: nbr tours /type pneus | R38: chronos | T38: tps total / type pneu | U38: =V38/86400 -> 00:00:00 | V38: =E38+G38+I38+K38+M38+O38 -> 0
C39: S soft | E39: =SUMIF(E23,"S soft",F15) -> 0 | G39: =SUMIF(G23,"S soft",H15) -> 0 | H39: =IF(G39>0,1,0) -> 0 | I39: =SUMIF(I23,"S soft",J15) -> 0 | J39: =IF(I39>0,1,0) -> 0 | K39: =SUMIF(K23,"S soft",L15) -> 0 | L39: =IF(K39>0,1,0) -> 0 | M39: =SUMIF(M23,"S soft",N15) -> 0 | N39: =IF(M39>0,1,0) -> 0 | O39: =SUMIF(O23,"S soft",P15) -> 0 | P39: =IF(O39>0,1,0) -> 0 | Q39: =E39+G39+I39+K39+M39+O39 -> 0 | R39: =VLOOKUP(C39,$T$35:$U$37,2,FALSE) ->  | T39: =IFERROR((Q39)*R39,0) -> 0
C40: soft | E40: =SUMIF(E23,"soft",F15) -> 0 | G40: =SUMIF(G23,"soft",H15) -> 0 | H40: =IF(G40>0,1,0) -> 0 | I40: =SUMIF(I23,"soft",J15) -> 0 | J40: =IF(I40>0,1,0) -> 0 | K40: =SUMIF(K23,"soft",L15) -> 0 | L40: =IF(K40>0,1,0) -> 0 | M40: =SUMIF(M23,"soft",N15) -> 0 | N40: =IF(M40>0,1,0) -> 0 | O40: =SUMIF(O23,"soft",P15) -> 0 | P40: =IF(O40>0,1,0) -> 0 | Q40: 0 | R40: =VLOOKUP(C40,$T$35:$U$37,2,FALSE) ->  | T40: =IFERROR((Q40)*R40,0) -> 0
C41: médium | E41: =SUMIF(E23,"médium",F15) -> 0 | G41: =SUMIF(G23,"médium",H15) -> 0 | H41: =IF(G41>0,1,0) -> 0 | I41: =SUMIF(I23,"médium",J15) -> 0 | J41: =IF(I41>0,1,0) -> 0 | K41: =SUMIF(K23,"médium",L15) -> 0 | L41: =IF(K41>0,1,0) -> 0 | M41: =SUMIF(M23,"médium",N15) -> 0 | N41: =IF(M41>0,1,0) -> 0 | O41: =SUMIF(O23,"médium",P15) -> 0 | P41: =IF(O41>0,1,0) -> 0 | Q41: 0 | R41: =VLOOKUP(C41,$T$35:$U$37,2,FALSE) ->  | T41: =IFERROR((Q41)*R41,0) -> 0
C42: hard | E42: =SUMIF(E23,"hard",F15) -> 0 | G42: =SUMIF(G23,"hard",H15) -> 0 | H42: =IF(G42>0,1,0) -> 0 | I42: =SUMIF(I23,"hard",J15) -> 0 | J42: =IF(I42>0,1,0) -> 0 | K42: =SUMIF(K23,"hard",L15) -> 0 | L42: =IF(K42>0,1,0) -> 0 | M42: =SUMIF(M23,"hard",N15) -> 0 | N42: =IF(M42>0,1,0) -> 0 | O42: =SUMIF(O23,"hard",P15) -> 0 | P42: =IF(O42>0,1,0) -> 0 | Q42: 0 | R42: =VLOOKUP(C42,$T$35:$U$37,2,FALSE) ->  | T42: =IFERROR(Q42*R42,0) -> 0
C43: (sans) change de pneus | E43: =SUMIF(E23,"sans",F15) -> 0 | G43: =SUMIF(G23,"sans",H15) -> 0 | I43: =SUMIF(I23,"sans",J15) -> 0 | K43: =SUMIF(K23,"sans",L15) -> 0 | M43: =SUMIF(M23,"sans",N15) -> 0 | O43: =SUMIF(O23,"sans",P15) -> 0 | Q43: 0 | R43: =Q8 -> 0.00150462963 | T43: =IFERROR(Q43*R43,0) -> 0 | U43: cumul pertes de temps
C44: inter | E44: =SUMIF(E23,"inter",F15) -> 0 | G44: =SUMIF(G23,"inter",H15) -> 0 | H44: =IF(G44>0,1,0) -> 0 | I44: =SUMIF(I23,"inter",J15) -> 0 | J44: =IF(I44>0,1,0) -> 0 | K44: =SUMIF(K23,"inter",L15) -> 0 | L44: =IF(K44>0,1,0) -> 0 | M44: =SUMIF(M23,"inter",N15) -> 0 | N44: =IF(M44>0,1,0) -> 0 | O44: =SUMIF(O23,"inter",P15) -> 0 | P44: =IF(O44>0,1,0) -> 0 | Q44: 0 | R44: =VLOOKUP(C44,$T$35:$U$37,2,FALSE) ->  | T44: =IFERROR(Q44*R44,0) -> 0
C45: pluie | E45: =SUMIF(E23,"pluie",F15) -> 0 | G45: =SUMIF(G23,"pluie",H15) -> 0 | H45: =IF(G45>0,1,0) -> 0 | I45: =SUMIF(I23,"pluie",J15) -> 0 | J45: =IF(I45>0,1,0) -> 0 | K45: =SUMIF(K23,"pluie",L15) -> 0 | L45: =IF(K45>0,1,0) -> 0 | M45: =SUMIF(M23,"pluie",N15) -> 0 | N45: =IF(M45>0,1,0) -> 0 | O45: =SUMIF(O23,"pluie",P15) -> 0 | P45: =IF(O45>0,1,0) -> 0 | Q45: 0 | R45: =VLOOKUP(C45,$T$35:$U$37,2,FALSE) ->  | T45: =IFERROR(Q45*R45,0) -> 0 | U45: =U51+V38+C17 ->  | V45: =U45/86400 -> 
C46: Nbr de changements de pneu | H46: =SUM(H39:H45) -> 0 | J46: =SUM(J39:J45) -> 0 | L46: =SUM(L39:L45) -> 0 | N46: =SUM(N39:N45) -> 0 | P46: =SUM(P39:P45) -> 0 | Q46: =P46+N46+L46+J46+H46+F46 -> 0 | T46: =SUM(T39:T45) -> 0 | U46: =U45/G54 ->  | V46: =U46/86400 -> 
C47: Nbr de refuel | F47: =IF(H26>0,1,0) ->  | H47: =IF(J26>0,1,0) ->  | J47: =IF(L26>0,1,0) ->  | L47: =IF(N26>0,1,0) ->  | N47: =IF(P26>0,1,0) ->  | P47: =IF(Q26>0,1,0) -> 0 | Q47: =P47+N47+L47+J47+H47+F47 -> 
T48: tps échange pneu : | U48: =Q46*H11 -> 0 | V48: =U48/86400 -> 00:00:00
T49: tps refuel : | U49: =$U$26*$L$11 -> 
Q50: somme max refuel ou échange pneus : | U50: =MAX(Q46:Q47) ->  | V50: =E11/86400 -> 00:00:05.500
Q51: Temps total arrêt au stand : | U51: =(U50*E11)+U48+U49 ->  | V51: =U51/86400 -> 
B53: Récapitulatif stratégie 1
G54: =T15 -> 0 | H54: en | I54: =G54*I56 ->  | J54: Distance totale : | L54: =G54*I2 ->  | M54: annotations libres
B56: Nombre de pits : | E56: =U50 ->  | F56: Tps moyen / tour avec pits : | I56: =(T46+V45)/T15 ->  | J56: Vitesse moyenne : | L56: =comparateur!R15 -> 
B58: Cumul tps pit(s) : | E58: =V51 ->  | F58: Consommation moyenne : | I58: =I10 -> 1 tour | J58: =J10 -> 
C69: Utilisation | E69: =E7 -> 0 | F69: =I7 -> 0 | G69: =M7 -> 0
E70: =G8 -> libre | F70: =K8 -> libre | G70: =O8 -> libre
C71: Obligatoire(s) | E71: =IF(E70="obligatoire",E69,"libre") -> libre | F71: =IF(F70="obligatoire",F69,"libre") -> libre | G71: =IF(G70="obligatoire",G69,"libre") -> libre
P72: FALSE
C73: Utilisés | E73: =E23 -> 0 | F73: =G23 -> 0 | G73: =I23 -> 0 | H73: =K23 -> 0 | I73: =M23 -> 0 | J73: =O23 -> 0 | K73: libre | L73: =ISNUMBER(MATCH(E71,$E$73:$K$73,0)) -> TRUE | M73: =ISNUMBER(MATCH(F71,$E$73:$K$73,0)) -> TRUE | N73: TRUE | P73: =COUNTIF(L73:N73,"FAUX") -> 0

Sheet Strat 3
A1: RAPPEL DONNES | X1: Cliquez sur les cellules pour obtenir des informations complémentaires.
C2: Circuit / Piste : | E2: =Accueil!D10 -> 0 | H2: Longueur : | I2: =Accueil!I10 ->  | J2: Durée : | K2: =Accueil!E12 -> 0 | L2: =Accueil!F12 -> 00:00:00
C3: Pit pneus + refuel complet | F3: =PIT!S11 ->  | M3: =L2 -> 00:00:00 | N3: 00:00:30 | O3: =M3+F8+N3 -> 00:02:40
C4: Infos paramètres course | E4: Pit pneus : | F4: Temps cumulé de refuel | H4: Autonomie | I4: Ravitaillement | J4: Fuel départ | K4: Conso. | L4: Usure | M4: Catégorie | N4: Véhicule modèle :
E5: =PIT!S9 -> 10 | F5: =G5*L11 ->  | G5: =U26 ->  | H5: =Accueil!J16 -> 0 | I5: =PIT!S19 -> 0 | J5: =Accueil!J20 -> 100 | K5: =Accueil!I31 -> X1 | L5: =Accueil!F31 -> X1 | M5: =Accueil!D29 -> 0 | N5: =Accueil!F29 -> 0
C7: Infos pneus | E7: =chronos!C10 -> 0 | F7: Tps moyen | G7: Monte | I7: =chronos!C12 -> 0 | J7: Tps moyen | K7: Monte | M7: =chronos!C14 -> 0 | N7: Tps moyen | O7: Monte | Q7: sans
C8: Pic Performance | E8: =chronos!G10 -> 8 | F8: =chronos!E10 -> 00:02:10 | G8: =Accueil!F16 -> libre | H8: Pic P | I8: =chronos!G12 -> 12 | J8: =chronos!E12 -> 00:02:12 | K8: =Accueil!F18 -> libre | L8: Pic P | M8: =chronos!G14 -> 16 | N8: =chronos!E14 -> 02,14,0 | O8: =Accueil!F20 -> libre | Q8: =F8 -> 00:02:10
C10: volume | E10: =Accueil!K16 -> 100 | F10: soit | G10: consommation | H10: ='ajust éco'!D9*'Strat 3'!I2 ->  | I10: 1 tour | J10: =(H10*1)/E10 ->  | K10: Jauge initiale : | M10: =Accueil!J20 -> 100
C11: ENTREE / SORTIE : | E11: =PIT!S9-PIT!S7 -> 5.5 | F11: démonte/monte pneus : | H11: =PIT!S7 -> 4.5 | I11: Tps remplissage | K11: 1 | L11: =PIT!S15 ->  | U11: =H5 -> 0 | V11: =I2*H5 -> 
F13: Au moins un type de gomme obligatoire n'est pas utilisé !
T14: total nbr de tours
E15: Départ | G15: Pit 1 | I15: Pit 2 | K15: Pit 3 | M15: Pit 4 | O15: Pit 5 | T15: =R15+P15+N15+L15+J15+H15+F15 -> 0
B16: Pertes de temps total : purge pénalité... | F16: =VLOOKUP(E23,chronos!$Q$28:'chronos'!$R$30,2,FALSE) -> 8 | H16: =VLOOKUP(G23,chronos!$Q$28:'chronos'!$R$30,2,FALSE) -> 8 | J16: =VLOOKUP(I23,chronos!$Q$28:'chronos'!$R$30,2,FALSE) -> 8 | L16: =VLOOKUP(K23,chronos!$Q$28:'chronos'!$R$30,2,FALSE) -> 8 | N16: =VLOOKUP(M23,chronos!$Q$28:'chronos'!$R$30,2,FALSE) -> 8 | P16: =VLOOKUP(O23,chronos!$Q$28:'chronos'!$R$30,2,FALSE) -> 8 | Q16: 7 | R16: =Q16*R17 -> 0
C17: 00:00:00 | F17: =F15*$I$2 ->  | G17: =IF(ISERROR(F16<F15)="VRAI","",F16<F15) -> FALSE | H17: =H15*$I$2 ->  | I17: =IF(ISERROR(H16<H15)="VRAI","",H16<H15) -> FALSE | J17: =J15*$I$2 ->  | K17: =IF(ISERROR(J16<J15)="VRAI","",J16<J15) -> FALSE | L17: =L15*$I$2 ->  | M17: =IF(ISERROR(L16<L15)="VRAI","",L16<L15) -> FALSE | N17: =N15*$I$2 ->  | O17: =IF(ISERROR(N16<N15)="VRAI","",N16<N15) -> FALSE | P17: =P15*$I$2 ->  | Q17: =IF(ISERROR(P16<P15)="VRAI","",P16<P15) -> FALSE | R17: =COUNTIF(G17:Q17,"VRAI") -> 0
F19: =F15 -> 0 | G19: =F15*I56 ->  | H19: =F19+H15 -> 0 | I19: =(I56*H15)+G19 ->  | J19: =H19+J15 -> 0 | K19: =(J15*I56)+I19 ->  | L19: =J19+L15 -> 0 | M19: =L15*I56+K19 ->  | N19: =L19+N15 -> 0 | O19: =(N15*I56)+M19 ->  | P19: =N19+P15 -> 0 | Q19: =P19+R15 -> 0 | R19: =(P15*I56)+O19 -> 
G21: =F15 -> 0 | I21: =H15+F15 -> 0 | K21: =J15+H15+F15 -> 0 | M21: =L15+J15+H15+F15 -> 0 | O21: =N15+L15+J15+H15+F15 -> 0 | Q21: Dépassement nbr de tours
B23: Gommes | Q23: Dépassement durée course >1 tour
E25: =M10 -> 100 | G25: =G27*100 ->  | I25: =I27*100 ->  | K25: =K27*100 ->  | M25: =M27*100 ->  | O25: =O27*100 ->  | T25: refuel en litres | U25: refuel en tours
B26: E42 conso L/km / F42 besoin | E26: =VLOOKUP(E32,'ajust éco'!$B$9:$G$17,3,FALSE) ->  | F26: =(F17*E26) ->  | G26: =VLOOKUP(G32,'ajust éco'!$B$9:$G$17,3,FALSE) ->  | H26: =(H17*G26) ->  | I26: =VLOOKUP(I32,'ajust éco'!$B$9:$G$17,3,FALSE) ->  | J26: =(J17*I26) ->  | K26: =VLOOKUP(K32,'ajust éco'!$B$9:$G$17,3,FALSE) ->  | L26: =(L17*K26) ->  | M26: =VLOOKUP(M32,'ajust éco'!$B$9:$G$17,3,FALSE) ->  | N26: =(N17*M26) ->  | O26: =VLOOKUP(O32,'ajust éco'!$B$9:$G$17,3,FALSE) ->  | P26: =(P17*O26) ->  | T26: =(F35+H35+J35+L35+N35+P35)-E25 ->  | U26: =T26/$H$10 -> 
B27: niveau | E27: =E25/100 -> 1 | F27: =(E28*$H$5)/1 ->  | G27: =MIN(100%,(G30+(E27-E28))) ->  | I27: =MIN(100%,(I30+(G27-G28))) ->  | K27: =MIN(100%,(K30+(I27-I28))) ->  | M27: =MIN(100%,(M30+(K27-K28))) ->  | O27: =MIN(100%,(O30+(M27-M28))) -> 
C28: calcul besoin | E28: =(F15*E35)/100 ->  | F28: =IF(E28>E27,"T","") ->  | G28: =(SUM(H15*G35/100)) ->  | H28: =IF(G28>100%,"T","") ->  | I28: =(SUM(J15*I35/100)) ->  | J28: =IF(I28>100%,"T","") ->  | K28: =(SUM(L15*K35/100)) ->  | L28: =IF(K28>100%,"T","") ->  | M28: =(SUM(N15*M35/100)) ->  | N28: =IF(M28>100%,"T","") ->  | O28: =(SUM(P15*O35/100)) ->  | P28: =IF(O28>100%,"T","") ->  | Q28: Estimation cumul perte de temps conduite éco
B29: complément/jauge
F30: =E25/H10 ->  | G30: =G28 ->  | H30: =(G28*$H$5)/1 ->  | I30: =I28 ->  | J30: =(I28*$H$5)/1 ->  | K30: =K28 ->  | L30: =(K28*$H$5)/1 ->  | M30: =M28 ->  | N30: =(M28*$H$5)/1 ->  | O30: =O28 ->  | P30: =(O28*$H$5)/1 -> 
B32: Eco fuel | E32: 0 | G32: 0 | I32: 0 | K32: 0 | M32: 0 | O32: 0 | Q32: =U38 -> 00:00:00
C35: conso L/tour avec éco | E35: =E26*$I$2 ->  | F35: =E35*F15 ->  | G35: =G26*$I$2 ->  | H35: =G35*H15 ->  | I35: =I26*$I$2 ->  | J35: =I35*J15 ->  | K35: =K26*$I$2 ->  | L35: =K35*L15 ->  | M35: =M26*$I$2 ->  | N35: =M35*N15 ->  | O35: =O26*$I$2 ->  | P35: =O35*P15 ->  | T35: =E7 -> 0 | U35: =F8 -> 00:02:10
C36: calcul perte temps | E36: =VLOOKUP(E32,'ajust éco'!$B$9:$L$17,11,"faux") -> 0 | G36: =VLOOKUP(G32,'ajust éco'!$B$9:$L$17,11,"faux") -> 0 | I36: =VLOOKUP(I32,'ajust éco'!$B$9:$L$17,11,"faux") -> 0 | K36: =VLOOKUP(K32,'ajust éco'!$B$9:$L$17,11,"faux") -> 0 | M36: =VLOOKUP(M32,'ajust éco'!$B$9:$L$17,11,"faux") -> 0 | O36: =VLOOKUP(O32,'ajust éco'!$B$9:$L$17,11,"faux") -> 0 | T36: =I7 -> 0 | U36: =J8 -> 00:02:12
E37: =E25/E35 ->  | G37: =G25/G35 ->  | I37: =I25/I35 ->  | K37: =K25/K35 ->  | M37: =M25/M35 ->  | O37: =O25/O35 ->  | T37: =M7 -> 0 | U37: =N8 -> 02,14,0
C38: Calcul augmentation tps/tour en fonction de la conduite éco | E38: =E36*F15 -> 0 | G38: =G36*H15 -> 0 | I38: =I36*J15 -> 0 | K38: =K36*L15 -> 0 | M38: =M36*N15 -> 0 | O38: =O36*P15 -> 0 | Q38: nbr tours /type pneus | R38: chronos | T38: tps total / type pneu | U38: =V38/86400 -> 00:00:00 | V38: =E38+G38+I38+K38+M38+O38 -> 0
C39: S soft | E39: =SUMIF(E23,"S soft",F15) -> 0 | G39: =SUMIF(G23,"S soft",H15) -> 0 | H39: =IF(G39>0,1,0) -> 0 | I39: =SUMIF(I23,"S soft",J15) -> 0 | J39: =IF(I39>0,1,0) -> 0 | K39: =SUMIF(K23,"S soft",L15) -> 0 | L39: =IF(K39>0,1,0) -> 0 | M39: =SUMIF(M23,"S soft",N15) -> 0 | N39: =IF(M39>0,1,0) -> 0 | O39: =SUMIF(O23,"S soft",P15) -> 0 | P39: =IF(O39>0,1,0) -> 0 | Q39: =E39+G39+I39+K39+M39+O39 -> 0 | R39: =VLOOKUP(C39,$T$35:$U$37,2,FALSE) ->  | T39: =IFERROR((Q39)*R39,0) -> 0
C40: soft | E40: =SUMIF(E23,"soft",F15) -> 0 | G40: =SUMIF(G23,"soft",H15) -> 0 | H40: =IF(G40>0,1,0) -> 0 | I40: =SUMIF(I23,"soft",J15) -> 0 | J40: =IF(I40>0,1,0) -> 0 | K40: =SUMIF(K23,"soft",L15) -> 0 | L40: =IF(K40>0,1,0) -> 0 | M40: =SUMIF(M23,"soft",N15) -> 0 | N40: =IF(M40>0,1,0) -> 0 | O40: =SUMIF(O23,"soft",P15) -> 0 | P40: =IF(O40>0,1,0) -> 0 | Q40: 0 | R40: =VLOOKUP(C40,$T$35:$U$37,2,FALSE) ->  | T40: =IFERROR((Q40)*R40,0) -> 0
C41: médium | E41: =SUMIF(E23,"médium",F15) -> 0 | G41: =SUMIF(G23,"médium",H15) -> 0 | H41: =IF(G41>0,1,0) -> 0 | I41: =SUMIF(I23,"médium",J15) -> 0 | J41: =IF(I41>0,1,0) -> 0 | K41: =SUMIF(K23,"médium",L15) -> 0 | L41: =IF(K41>0,1,0) -> 0 | M41: =SUMIF(M23,"médium",N15) -> 0 | N41: =IF(M41>0,1,0) -> 0 | O41: =SUMIF(O23,"médium",P15) -> 0 | P41: =IF(O41>0,1,0) -> 0 | Q41: 0 | R41: =VLOOKUP(C41,$T$35:$U$37,2,FALSE) ->  | T41: =IFERROR((Q41)*R41,0) -> 0
C42: hard | E42: =SUMIF(E23,"hard",F15) -> 0 | G42: =SUMIF(G23,"hard",H15) -> 0 | H42: =IF(G42>0,1,0) -> 0 | I42: =SUMIF(I23,"hard",J15) -> 0 | J42: =IF(I42>0,1,0) -> 0 | K42: =SUMIF(K23,"hard",L15) -> 0 | L42: =IF(K42>0,1,0) -> 0 | M42: =SUMIF(M23,"hard",N15) -> 0 | N42: =IF(M42>0,1,0) -> 0 | O42: =SUMIF(O23,"hard",P15) -> 0 | P42: =IF(O42>0,1,0) -> 0 | Q42: 0 | R42: =VLOOKUP(C42,$T$35:$U$37,2,FALSE) ->  | T42: =IFERROR(Q42*R42,0) -> 0
C43: (sans) change de pneus | E43: =SUMIF(E23,"sans",F15) -> 0 | G43: =SUMIF(G23,"sans",H15) -> 0 | I43: =SUMIF(I23,"sans",J15) -> 0 | K43: =SUMIF(K23,"sans",L15) -> 0 | M43: =SUMIF(M23,"sans",N15) -> 0 | O43: =SUMIF(O23,"sans",P15) -> 0 | Q43: 0 | R43: =Q8 -> 0.00150462963 | T43: =IFERROR(Q43*R43,0) -> 0 | U43: cumul pertes de temps
C44: inter | E44: =SUMIF(E23,"inter",F15) -> 0 | G44: =SUMIF(G23,"inter",H15) -> 0 | H44: =IF(G44>0,1,0) -> 0 | I44: =SUMIF(I23,"inter",J15) -> 0 | J44: =IF(I44>0,1,0) -> 0 | K44: =SUMIF(K23,"inter",L15) -> 0 | L44: =IF(K44>0,1,0) -> 0 | M44: =SUMIF(M23,"inter",N15) -> 0 | N44: =IF(M44>0,1,0) -> 0 | O44: =SUMIF(O23,"inter",P15) -> 0 | P44: =IF(O44>0,1,0) -> 0 | Q44: 0 | R44: =VLOOKUP(C44,$T$35:$U$37,2,FALSE) ->  | T44: =IFERROR(Q44*R44,0) -> 0
C45: pluie | E45: =SUMIF(E23,"pluie",F15) -> 0 | G45: =SUMIF(G23,"pluie",H15) -> 0 | H45: =IF(G45>0,1,0) -> 0 | I45: =SUMIF(I23,"pluie",J15) -> 0 | J45: =IF(I45>0,1,0) -> 0 | K45: =SUMIF(K23,"pluie",L15) -> 0 | L45: =IF(K45>0,1,0) -> 0 | M45: =SUMIF(M23,"pluie",N15) -> 0 | N45: =IF(M45>0,1,0) -> 0 | O45: =SUMIF(O23,"pluie",P15) -> 0 | P45: =IF(O45>0,1,0) -> 0 | Q45: 0 | R45: =VLOOKUP(C45,$T$35:$U$37,2,FALSE) ->  | T45: =IFERROR(Q45*R45,0) -> 0 | U45: =U51+V38+C17 ->  | V45: =U45/86400 -> 
C46: Nbr de changements de pneu | H46: =SUM(H39:H45) -> 0 | J46: =SUM(J39:J45) -> 0 | L46: =SUM(L39:L45) -> 0 | N46: =SUM(N39:N45) -> 0 | P46: =SUM(P39:P45) -> 0 | Q46: =P46+N46+L46+J46+H46+F46 -> 0 | T46: =SUM(T39:T45) -> 0 | U46: =U45/G54 ->  | V46: =U46/86400 -> 
C47: Nbr de refuel | F47: =IF(H26>0,1,0) ->  | H47: =IF(J26>0,1,0) ->  | J47: =IF(L26>0,1,0) ->  | L47: =IF(N26>0,1,0) ->  | N47: =IF(P26>0,1,0) ->  | P47: =IF(Q26>0,1,0) -> 0 | Q47: =P47+N47+L47+J47+H47+F47 -> 
T48: tps échange pneu : | U48: =Q46*H11 -> 0 | V48: =U48/86400 -> 00:00:00
T49: tps refuel : | U49: =$U$26*$L$11 -> 
Q50: somme max refuel ou échange pneus : | U50: =MAX(Q46:Q47) ->  | V50: =E11/86400 -> 00:00:05.500
Q51: Temps total arrêt au stand : | U51: =(U50*E11)+U48+U49 ->  | V51: =U51/86400 -> 
B53: Récapitulatif stratégie 1
G54: =T15 -> 0 | H54: en | I54: =G54*I56 ->  | J54: Distance totale : | L54: =G54*I2 ->  | M54: annotations libres
B56: Nombre de pits : | E56: =U50 ->  | F56: Tps moyen / tour avec pits : | I56: =(T46+V45)/T15 ->  | J56: Vitesse moyenne : | L56: =comparateur!R15 -> 
B58: Cumul tps pit(s) : | E58: =V51 ->  | F58: Consommation moyenne : | I58: =I10 -> 1 tour | J58: =J10 -> 
C69: Utilisation | E69: =E7 -> 0 | F69: =I7 -> 0 | G69: =M7 -> 0
E70: =G8 -> libre | F70: =K8 -> libre | G70: =O8 -> libre
C71: Obligatoire(s) | E71: =IF(E70="obligatoire",E69,"libre") -> libre | F71: =IF(F70="obligatoire",F69,"libre") -> libre | G71: =IF(G70="obligatoire",G69,"libre") -> libre
P72: FALSE
C73: Utilisés | E73: =E23 -> 0 | F73: =G23 -> 0 | G73: =I23 -> 0 | H73: =K23 -> 0 | I73: =M23 -> 0 | J73: =O23 -> 0 | K73: libre | L73: =ISNUMBER(MATCH(E71,$E$73:$K$73,0)) -> TRUE | M73: =ISNUMBER(MATCH(F71,$E$73:$K$73,0)) -> TRUE | N73: TRUE | P73: =COUNTIF(L73:N73,"FAUX") -> 0

Sheet comparateur
C4: Circuit : | E4: ='Strat 1'!E2 -> 0 | L4: ='Strat 1'!G54 -> 0 | N4: Catégorie : | O4: ='Strat 1'!M5 -> 0 | P4: Voiture : | Q4: ='Strat 1'!N5 -> 0
C8: COMPARATEUR STRAT | L8: Stratégie 1 | O8: Indice de risque : | R8: =T69 -> 0 | U8: Type pneus : | V8: ='Strat 1'!$E$23 -> 0 | X8: ='Strat 1'!$G$23 -> 0 | Z8: ='Strat 1'!$I$23 -> 0 | AB8: ='Strat 1'!$K$23 -> 0 | AD8: ='Strat 1'!$M$23 -> 0 | AF8: ='Strat 1'!$O$23 -> 0
E9: type | G9: tps moyen | I9: durée | U9: Pit | V9: Dép. | X9: P1 | Z9: P2 | AB9: P3 | AD9: P4 | AF9: P5
E10: =chronos!C10 -> 0 | G10: =chronos!E10 -> 00:02:10 | I10: ='Strat 1'!E8 -> 8 | N10: STOP PIT | O10: Durée course : | R10: ='Strat 1'!$I$54 ->  | S10: =R10*24 ->  | U10: Nbr de tours : | V10: ='Strat 1'!$F$15 -> 0 | X10: ='Strat 1'!$H$15 -> 0 | Z10: ='Strat 1'!$J$15 -> 0 | AB10: ='Strat 1'!$L$15 -> 0 | AD10: ='Strat 1'!$N$15 -> 0 | AF10: ='Strat 1'!$P$15 -> 0
E12: =chronos!C12 -> 0 | G12: =chronos!E12 -> 00:02:12 | I12: ='Strat 1'!I8 -> 12 | L12: Nombre : | N12: ='Strat 1'!$E$56 ->  | O12: Distance : | R12: =IF('Strat 1'!$L$54=0,"",'Strat 1'!$L$54) ->  | U12: Conduite éco : | V12: ='Strat 1'!$E$32 -> 0 | X12: ='Strat 1'!$G$32 -> 0 | Z12: ='Strat 1'!$I$32 -> 0 | AB12: ='Strat 1'!$K$32 -> 0 | AD12: ='Strat 1'!$M$32 -> 0 | AF12: ='Strat 1'!$O$32 -> 0
E15: =chronos!C14 -> 0 | G15: =chronos!E14 -> 02,14,0 | I15: ='Strat 1'!M8 -> 16 | L15: Cumul temps arrêt : | N15: ='Strat 1'!$V$51 ->  | O15: Vitesse moyenne : | R15: =R12/S10 ->  | U15: Usures pneus :
O18: Temps moyen / tour : | R18: ='Strat 1'!$I$56 ->  | U18: Cumul perte de temps : | X18: =IF('Strat 1'!$V$45=0,"",'Strat 1'!$V$45) ->  | AA18: par tour : | AD18: ='Strat 1'!$V$46 -> 
L22: Stratégie 2 | O22: Indice de risque : | R22: =T78 -> 0 | U22: Type pneus : | V22: ='Strat 2'!$E$23 -> 0 | X22: ='Strat 2'!$G$23 -> 0 | Z22: ='Strat 2'!$I$23 -> 0 | AB22: ='Strat 2'!$K$23 -> 0 | AD22: ='Strat 2'!$M$23 -> 0 | AF22: ='Strat 2'!$O$23 -> 0
U23: Pit | V23: Dép. | X23: P1 | Z23: P2 | AB23: P3 | AD23: P4 | AF23: P5
N24: STOP PIT | O24: Durée course : | R24: ='Strat 2'!$I$54 ->  | S24: =R24*24 ->  | T24: 0 | U24: Nbr de tours : | V24: ='Strat 2'!$F$15 -> 0 | X24: ='Strat 2'!$H$15 -> 0 | Z24: ='Strat 2'!$J$15 -> 0 | AB24: ='Strat 2'!$L$15 -> 0 | AD24: ='Strat 2'!$N$15 -> 0 | AF24: ='Strat 2'!$P$15 -> 0
L26: Nombre : | N26: ='Strat 2'!$E$56 ->  | O26: Distance : | R26: =IF('Strat 2'!$L$54=0,"",'Strat 2'!$L$54) ->  | U26: Conduite éco : | V26: ='Strat 2'!$E$32 -> 0 | X26: ='Strat 2'!$G$32 -> 0 | Z26: ='Strat 2'!$I$32 -> 0 | AB26: ='Strat 2'!$K$32 -> 0 | AD26: ='Strat 2'!$M$32 -> 0 | AF26: ='Strat 2'!$O$32 -> 0
L29: Cumul temps arrêt : | N29: ='Strat 2'!$V$51 ->  | O29: Vitesse moyenne : | R29: =R26/S24 ->  | U29: Usures pneus :
O32: Temps moyen / tour : | R32: ='Strat 2'!$I$56 ->  | U32: Cumul perte de temps : | X32: =IF('Strat 2'!$V$45=0,"",'Strat 2'!$V$45) ->  | AA32: par tour : | AD32: ='Strat 2'!$V$46 -> 
L36: Stratégie 3 | O36: Indice de risque : | R36: =T87 -> 0 | U36: Type pneus : | V36: ='Strat 3'!$E$23 -> 0 | X36: ='Strat 3'!$G$23 -> 0 | Z36: ='Strat 3'!$I$23 -> 0 | AB36: ='Strat 3'!$K$23 -> 0 | AD36: ='Strat 3'!$M$23 -> 0 | AF36: ='Strat 3'!$O$23 -> 0 | AK36: La meilleur stratégie est en principe celle ou la majorité des indicateurs sont verts avec le temps moyen / tour le plus faible. En cas de valeurs identiques prenez en compte l'indice de risque ou choisissez la strat ou vous êtes le plus confortable avec votre mode de conduite.
U37: Pit | V37: Dép. | X37: P1 | Z37: P2 | AB37: P3 | AD37: P4 | AF37: P5
N38: STOP PIT | O38: Durée course : | R38: ='Strat 3'!$I$54 ->  | S38: =R38*24 ->  | U38: Nbr de tours : | V38: ='Strat 3'!$F$15 -> 0 | X38: ='Strat 3'!$H$15 -> 0 | Z38: ='Strat 3'!$J$15 -> 0 | AB38: ='Strat 3'!$L$15 -> 0 | AD38: ='Strat 3'!$N$15 -> 0 | AF38: ='Strat 3'!$P$15 -> 0
L40: Nombre : | N40: ='Strat 3'!$E$56 ->  | O40: Distance : | R40: =IF('Strat 3'!$L$54=0,"",'Strat 3'!$L$54) ->  | U40: Conduite éco : | V40: ='Strat 3'!$E$32 -> 0 | X40: ='Strat 3'!$G$32 -> 0 | Z40: ='Strat 3'!$I$32 -> 0 | AB40: ='Strat 3'!$K$32 -> 0 | AD40: ='Strat 3'!$M$32 -> 0 | AF40: ='Strat 3'!$O$32 -> 0
L43: Cumul temps arrêt : | N43: ='Strat 3'!$V$51 ->  | O43: Vitesse moyenne : | R43: =R40/S38 ->  | U43: Usures pneus :
O46: Temps moyen / tour : | R46: ='Strat 3'!$I$56 ->  | U46: Cumul perte de temps : | X46: =IF('Strat 3'!$V$45=0,"",'Strat 3'!$V$45) ->  | AA46: par tour : | AD46: ='Strat 3'!$V$46 -> 
X50: ajuster valeur max indice risque | AF50: 200
M62: strat 1 | N62: nb tours | P62: Coeff. | Q62: points | T62: dépasse
M63: S soft | N63: ='Strat 1'!$Q$39 -> 0 | P63: 1 | Q63: =P63*N63 -> 0 | T63: nbr
M64: soft | N64: ='Strat 1'!$Q$40 -> 0 | P64: 1.75 | Q64: =P64*N64 -> 0 | T64: tours
M65: médium | N65: ='Strat 1'!$Q$41 -> 0 | P65: 2.5 | Q65: 0 | T65: =T69-(Q69+R69) -> 0
M66: hard | N66: ='Strat 1'!$Q$42 -> 0 | P66: 4 | Q66: 0
M67: inter | N67: ='Strat 1'!$Q$44 -> 0 | P67: 6 | Q67: 0
M68: pluie | N68: ='Strat 1'!$Q$45 -> 0 | P68: 8 | Q68: 0 | R68: usure pneus
Q69: =SUM(Q63:Q68) -> 0 | R69: =V15+X15+Z15+AB15+AD15+AF15 -> 0 | T69: =Q69+R69+'Strat 1'!$R$16 -> 0
M71: strat 2
M72: S soft | N72: ='Strat 2'!$Q$39 -> 0 | P72: =P63 -> 1 | Q72: =P72*N72 -> 0 | T72: dépasse
M73: soft | N73: ='Strat 2'!$Q$40 -> 0 | P73: =P64 -> 1.75 | Q73: =P73*N73 -> 0 | T73: nbr
M74: médium | N74: ='Strat 2'!$Q$41 -> 0 | P74: 2.5 | Q74: 0 | T74: tours
M75: hard | N75: ='Strat 2'!$Q$42 -> 0 | P75: 4 | Q75: 0 | T75: =T78-(Q78+R78) -> 0
M76: inter | N76: ='Strat 2'!$Q$44 -> 0 | P76: 6 | Q76: 0
M77: pluie | N77: ='Strat 2'!$Q$45 -> 0 | P77: 8 | Q77: 0
Q78: =SUM(Q72:Q77) -> 0 | R78: =V29+X29+Z29+AB29+AD29+AF29 -> 0 | T78: =Q78+R78+'Strat 2'!$R$16 -> 0
M80: strat 3
M81: S soft | N81: ='Strat 3'!$Q$39 -> 0 | P81: =P63 -> 1 | Q81: =P81*N81 -> 0 | T81: dépasse
M82: soft | N82: ='Strat 3'!$Q$40 -> 0 | P82: =P64 -> 1.75 | Q82: =P82*N82 -> 0 | T82: nbr
M83: médium | N83: ='Strat 3'!$Q$41 -> 0 | P83: 2.5 | Q83: 0 | T83: tours
M84: hard | N84: ='Strat 3'!$Q$42 -> 0 | P84: 4 | Q84: 0 | T84: =T87-(Q87+R87) -> 0
M85: inter | N85: ='Strat 3'!$Q$44 -> 0 | P85: 6 | Q85: 0
M86: pluie | N86: ='Strat 3'!$Q$45 -> 0 | P86: 8 | Q86: 0
Q87: =SUM(Q81:Q86) -> 0 | R87: =V43+X43+Z43+AB43+AD43+AF43 -> 0 | T87: =Q87+R87+'Strat 3'!$R$16 -> 0

Sheet chronos
C2: Relevés des temps : | G2: Essais libres 1 | M2: Essais libres 2
C4: Indiquez : | E4: obligatoire | G4: facultatif | I4: facultatif | K4: facultatif | M4: indications facultatives
E6: Temps moyen | G6: Durée train de pneus ou pic performance | I6: Répartition | K6: usure train | M6: Temps moyen | N6: Durée train de pneus ou pic performance | O6: usure train
C10: =Accueil!D16 -> 0 | E10: 00:02:10 | G10: 8 | I10: 0 | M10: =E10 -> 00:02:10 | N10: 0 | Q10: =M10 -> 00:02:10
C12: =Accueil!D18 -> 0 | E12: 00:02:12 | G12: 12 | I12: 0 | M12: =E12 -> 00:02:12 | N12: 0 | Q12: =M12 -> 00:02:12
C14: =Accueil!D20 -> 0 | E14: 02,14,0 | G14: 16 | I14: 0 | M14: =E14 -> 02,14,0 | N14: 0 | Q14: =M14 -> 02,14,0
C15: ! Vous devez indiquer un temps pour chacune des gommes utilisées, les autres informations n'ont qu'une valeur indicative d'aide à la décision
L24: Ajuster les temps chronos à l'échelle du graphique :
T25: b
Q28: =C10 -> 0 | R28: =G10 -> 8
Q29: =C12 -> 0 | R29: =G12 -> 12
Q30: =C14 -> 0 | R30: =G14 -> 16
Q48: =E10 -> 00:02:10
Q49: =E12 -> 00:02:12
Q50: =E14 -> 02,14,0
R52: essais 1 | S52: essais 1 | T52: essais 2
Q53: =C10 -> 0 | R53: =Q48 -> 00:02:10 | S53: =E10 -> 00:02:10 | T53: =M10 -> 00:02:10 | U53: =Q10 -> 00:02:10
Q54: =C12 -> 0 | R54: =Q49 -> 00:02:12 | S54: =E12 -> 00:02:12 | T54: =M12 -> 00:02:12 | U54: =Q12 -> 00:02:12
Q55: =C14 -> 0 | R55: =E14 -> 02,14,0 | S55: =E14 -> 02,14,0 | T55: =M14 -> 02,14,0 | U55: =Q14 -> 02,14,0
O64: 86400 | R64: essais 1 | S64: =S52 -> essais 1 | T64: =T52 -> essais 2 | U64: essais 2
Q65: =C10 -> 0 | R65: =(R53*$O$64) -> 130 | S65: =(S53*$O$64) -> 130 | T65: 130 | U65: 130
Q66: =C12 -> 0 | R66: 132 | S66: =(S54*$O$64) -> 132 | T66: =(T54*$O$64) -> 132 | U66: =(U54*$O$64) -> 132
Q67: =C14 -> 0 | S67: =(S55*$O$64) ->  | T67: =(T55*$O$64) ->  | U67: =(U55*$O$64) -> 
R68: 0 | S68: =(S56*$O$64) -> 0 | T68: =(T56*$O$64) -> 0 | U68: =(U56*$O$64) -> 0
R69: 0 | S69: =(S57*$O$64) -> 0 | T69: =(T57*$O$64) -> 0 | U69: =(U57*$O$64) -> 0
R70: 0 | S70: =(S58*$O$64) -> 0 | T70: =(T58*$O$64) -> 0 | U70: =(U58*$O$64) -> 0

Sheet ajust éco
B2: Conduite mode éco : ajustements autonomie et temps
P4: Menu
B6: Réglages conduite éco | C6: Gain autonomie | I6: Dégradation temps
C7: Coeff. | D7: ='Strat 1'!H10 ->  | E7: ='Strat 1'!H5*'Strat 1'!I2 ->  | F7: Gain nbr tours | G7: L/100 | H7: réservoir | I7: Sec/Km | J7: pas à pas | K7: Sec/Km | L7: Sec/tour
B9: 0 | C9: 0 | D9: =(1*G9)/$E$7 ->  | E9: écart conso | F9: 0 | G9: ='Strat 1'!E10 -> 100 | H9: 100 | I9: 0 | J9: 0 | K9: 0 | L9: 0
B10: tr/mn 2/3 | C10: 4 | D10: =(1*G10)/$E$7 ->  | E10: =C10+$B$65 -> 8 | F10: =(H10*$A$11)/$H$9-$A$11 -> 0 | G10: =$G$9-E10 -> 92 | H10: =$H$9+E10 -> 108 | I10: =J10+($B$66/50) -> 0.01 | J10: =K10 -> 0.01 | K10: 0.01 | L10: =I10*$D$46 -> 
A11: ='Strat 1'!H5 -> 0 | B11: tr/mn 1/2 | C11: 8 | E11: 12 | F11: 0 | G11: =$G$9-E11 -> 88 | H11: =$H$9+E11 -> 112 | I11: =J11+($B$66/50) -> 0.035 | J11: =K11+K10 -> 0.035 | K11: 0.025
B12: tr/mn 1/3 | C12: 16 | E12: 20 | F12: 0 | G12: 80 | H12: 120 | I12: 0.1 | J12: =K12+K11 -> 0.1 | K12: 0.075
B13: 2 | C13: 20 | E13: 24 | F13: 0 | G13: 76 | H13: 124 | I13: 0.175 | J13: =K13+K12 -> 0.175 | K13: 0.1 | O13: Réinitialiser :
B14: 3 | C14: 30 | E14: 34 | F14: 0 | G14: 66 | H14: 134 | I14: 0.25 | J14: =K13+K14 -> 0.25 | K14: 0.15
B15: 4 | C15: 45 | E15: 49 | F15: 0 | G15: 51 | H15: 149 | I15: 0.35 | J15: 0.35 | K15: 0.2
B16: 5 | C16: 60 | E16: 64 | F16: 0 | G16: 36 | H16: 164 | I16: 0.45 | J16: 0.45 | K16: 0.25
B17: 6 | C17: 75 | E17: 79 | F17: 0 | G17: 21 | H17: 179 | I17: 0.55 | J17: 0.55 | K17: 0.3
D18: litre au km | E18: éco nbr litres
D19: formule strat 1 | O19: A chaque modification d'une valeur, retournez sur votre strat pour vérifier si celle-ci correspond à vos valeurs.
D20: E42
B25: Pour augmenter l'autonomie : cliquez sur la flèche haute du curseur et/ou saisir une valeur supérieur à celle existante dans la colonne "Coeff de gain autonomie"
B26: Pour réduire l'autonomie : cliquez sur la flèche basse du curseur et/ou saisir une valeur inferieur à celle existante dans la colonne "Coeff de gain autonomie"
B28: Pour accroitre la perte de temps du à la réduction de la vitesse : cliquez sur la flèche haute du curseur ou saisir un temps supérieur à celui existant dans la colonne "Coeff réduction de vitesse"
B29: Pour réduire la perte de temps du à la réduction de la vitesse : cliquez sur la flèche basse du curseur ou saisir un chiffre inferieur à celui existant, voir négatif ci nécessaire, dans la colonne "Coeff réduction de vitesse"
B31: NB) les ajustements réalisés sont communs aux 3 stratégies
D45: long circuit
D46: ='Strat 1'!I2 -> 
D47: conso 100 km
D48: ='Strat 1'!E10 -> 100
E49: 1
C53: Valeurs par défaut
B54: 0 | C54: 0 | I54: 0
B55: tr/mn 2/3 | C55: 4 | I55: 0 | K55: 0.01
B56: tr/mn 1/2 | C56: 8 | I56: 0.05 | K56: 0.025
B57: tr/mn 1/3 | C57: 16 | I57: 0.1 | K57: 0.075
B58: 2 | C58: 20 | I58: 0.3 | K58: 0.1
B59: 3 | C59: 30 | I59: 0.5 | K59: 0.15
B60: 4 | C60: 45 | I60: 0.65 | K60: 0.2
B61: 5 | C61: 60 | I61: 0.85 | K61: 0.25
B62: 6 | C62: 75 | I62: 1 | K62: 0.3
B65: 4
B66: 0

Sheet PIT
B2: Saisies des temps d'arrêts aux stands : | M2: indiquez t1 et t2
Q4: Informations et détails des temps d'arrêts et de ravitaillements
M6: t3 | N6: calcul automatique avec la saisie de la vitesse de ravitaillement
Q7: Temps démontes et montes des pneus : | S7: 4.5 | T7: (modifier si nécessaire)
Q9: Temps réel changement pneus = (t2 - t1) | S9: =N11-N17 -> 10 | AF9: =S9+S13 -> 
M10: t2
N11: 20 | Q11: t3 Temps réel change pneus + refuel complet : | S11: =AF9 -> 
Q13: Temps de remplissage max du réservoir : | S13: =U17/S19 ->  | U13: =S13/U17 ->  | V13: / litre | AD13: Consommation : | AF13: =U17/S17 ->  | AG13: litres/tour
Q15: Temps de remplissage pour 1 tour : | S15: =AF13*U13 -> 
M16: t1
N17: 10 | Q17: Capacité max réservoir : | S17: ='Strat 1'!H5 -> 0 | U17: ='Strat 1'!E10 -> 100
Q19: Vitesse de ravitaillement : | S19: =Accueil!J18 -> 0 | T19: litres/seconde
B22: NB : les temps T2 et T1 sont indiqués par défaut mais peuvent varier en fonction des circuits ! Si vous voulez être plus précis dans votre stratégie, mesurez ces temps et modifiez-les.
Q23: 00:00:00
B25: Astuce ! Utlisez le chronomètre pour compatbiliser le temps de passage t1

Sheet Transmissions
A2: TYPES DE TRANSMISSIONS
N14: FR
N44: FF
N77: MR
N111: RR
N140: 4RM

Sheet grille
A3: nbrtours | B3: pneu | C3: pneu1 | D3: usure | E3: conso | G3: fuel | H3: éco2 | I3: pneu2 | J3: frein | N3: pneu3 | O3: durée
A4: =chronos!G10 -> 8 | B4: soft | C4: soft | D4: X1 | E4: X1 | G4: 0 | H4: 0 | I4: libre | J4: 5 | N4: ='Strat 1'!E7 -> 0 | O4: Temps
A5: =chronos!J15 -> 0 | B5: médium | C5: médium | D5: X2 | E5: X2 | G5: 0.5 | H5: tr/mn 2/3 | I5: obligatoire | J5: 4 | N5: ='Strat 1'!I7 -> 0 | O5: Tours
A6: =chronos!N15 -> 0 | B6: hard | C6: hard | D6: X3 | E6: X3 | G6: 1 | H6: tr/mn 1/2 | J6: 3 | N6: ='Strat 1'!M7 -> 0
B7: sans | C7: inter | D7: X4 | E7: X4 | G7: 1.5 | H7: tr/mn 1/3 | J7: 2 | N7: sans
B8: inter | C8: pluie | D8: X5 | E8: X5 | G8: 2 | H8: 2 | J8: 1
B9: pluie | C9: / | D9: X6 | E9: X6 | G9: 3 | H9: 3 | J9: 0
B10: / | D10: X7 | E10: X7 | G10: 4 | H10: 4 | J10: -1
D11: X8 | E11: X8 | G11: 5 | H11: 5 | J11: -2
D12: X9 | E12: X9 | G12: 6 | H12: 6 | J12: -3
D13: X10 | E13: X10 | J13: -4
D14: X11 | E14: X11 | J14: -5
D15: X12 | E15: X12
D16: X13 | E16: X13
D17: X14 | E17: X14 | K17: Mise à jour 1.20 Gt7
D18: X15 | E18: X15 | K18: circuits | L18: distance | M18: corner
D19: X16 | E19: X16 | J19: 1 | K19: Alsace - Village | L19: 5.423 | M19: 17
D20: X17 | E20: X17 | J20: 2 | K20: Alsace - Site d'essais | L20: 2.118 | M20: 6
D21: X18 | E21: X18 | J21: 3 | K21: Alsace - Site d'essais - Inversé | L21: 2.118 | M21: 6
D22: X19 | E22: X19 | J22: 4 | K22: Alsace - Village - inversé | L22: 5.423 | M22: 17
D23: X20 | E23: X20 | J23: 5 | K23: Autopolis International Racing Course | L23: 4.67 | M23: 19
J24: 6 | K24: Autopolis International Racing Course - Court | L24: 3.02 | M24: 12
J25: 7 | K25: Barcelona tracé national | L25: 2.977
J26: 8 | K26: Barcelona tracé rallycross | L26: 1.133
J27: 9 | K27: Barcelona-Catalunya - sans chicane | L27: 4.73 | M27: 11
J28: 10 | K28: Barcelona-Catalunya version GP | L28: 4.655 | M28: 13
J29: 11 | K29: BB Raceway | L29: 1.665 | M29: 4
J30: 12 | K30: BB Raceway - Inversé | L30: 1.665 | M30: 4
J31: 13 | K31: Blue Moon Bay Speedway | L31: 3.2 | M31: 3
J32: 14 | K32: Blue Moon Bay Speedway - Inversé | L32: 3.2 | M32: 3
J33: 15 | K33: Blue Moon Bay Speedway Central A | L33: 3.35 | M33: 10
J34: 16 | K34: Blue Moon Bay Speedway Central A - Inversé | L34: 3.35 | M34: 10
J35: 17 | K35: Blue Moon Bay Speedway Central B | L35: 2.86 | M35: 7
J36: 18 | K36: Blue Moon Bay Speedway Central B - Inversé | L36: 2.86 | M36: 7
J37: 19 | K37: Brands Hatch Grand Prix Circuit | L37: 3.946 | M37: 9
J38: 20 | K38: Brands Hatch Indy Circuit | L38: 1.929 | M38: 6
J39: 21 | K39: Colorado Springs Terre - Lac | L39: 2.99 | M39: 15
J40: 22 | K40: Colorado Springs Terre - Lac - Inversé | L40: 2.99 | M40: 15
J41: 23 | K41: Daytona International Speedway - Circuit routier | L41: 5.729 | M41: 10
J42: 24 | K42: Daytona International Speedway - Tri-ovale | L42: 4.023 | M42: 3
J43: 25 | K43: Deep Forest Raceway | L43: 4.253 | M43: 15
J44: 26 | K44: Deep Forest Raceway - Inversé | L44: 4.253 | M44: 15
J45: 27 | K45: Dragon Trail Jardins | L45: 4.352 | M45: 16
J46: 28 | K46: Dragon Trail Jardins - Inversé | L46: 4.352 | M46: 16
J47: 29 | K47: Dragon Trail Littoral | L47: 5.209 | M47: 17
J48: 30 | K48: Dragon Trail Littoral - Inversé | L48: 5.209 | M48: 17
J49: 31 | K49: Fishermans Ranch | L49: 6.893 | M49: 40
J50: 32 | K50: Fishermans Ranch - Inversé | L50: 6.893 | M50: 40
J51: 33 | K51: Fuji International Speedway | L51: 4.563 | M51: 16
J52: 34 | K52: Fuji International Speedway - Court | L52: 4.526 | M52: 15
J53: 35 | K53: Goodwood Motor Circuit | L53: 3.809 | M53: 7
J54: 36 | K54: High Speed Ring | L54: 4.345 | M54: 6
J55: 37 | K55: High Speed Ring - Inversé | L55: 4.345 | M55: 6
J56: 38 | K56: Interlagos Autódromo | L56: 4.309 | M56: 15
J57: 39 | K57: Kyoto Driving Park - Miyabi | L57: 1.953 | M57: 7
J58: 40 | K58: Kyoto Driving Park - Yamagiwa | L58: 4.912 | M58: 15
J59: 41 | K59: Kyoto Driving Park - Yamagiwa - Inversé | L59: 4.912 | M59: 15
J60: 42 | K60: Kyoto Driving Park - Yamagiwa + Miyabi | L60: 6.846 | M60: 20
J61: 43 | K61: Kyoto Driving Park - Yamagiwa + Miyabi - Inversé | L61: 6.846 | M61: 20
J62: 44 | K62: Lago Maggiore | L62: 5.809 | M62: 17
J63: 45 | K63: Lago Maggiore - Inversé | L63: 5.809 | M63: 17
J64: 46 | K64: Lago Maggiore Centre | L64: 1.706 | M64: 9
J65: 47 | K65: Lago Maggiore Centre - inversé | L65: 1.706 | M65: 9
J66: 48 | K66: Lago Maggiore Est | L66: 3.643 | M66: 13
J67: 49 | K67: Lago Maggiore Est - Inversé | L67: 3.643 | M67: 13
J68: 50 | K68: Lago Maggiore Ouest | L68: 4.168 | M68: 13
J69: 51 | K69: Lago Maggiore Ouest - Inversé | L69: 4.168 | M69: 13
J70: 52 | K70: Mans circuit des 24 Heures | L70: 13.626 | M70: 38
J71: 53 | K71: Mans circuit des 24 Heures - sans de chicane | L71: 13.326 | M71: 36
J72: 54 | K72: Michelin Raceway Road Atlanta | L72: 4.088 | N72: 2022-11-24
J73: 55 | K73: Monza Autodromo Nazionale | L73: 5.793 | M73: 11
J74: 56 | K74: Monza Autodromo Nazionale - sans chicane | L74: 5.755 | M74: 9
J75: 57 | K75: Mount Panorama Motor Racing Circuit | L75: 6.213 | M75: 22
J76: 58 | K76: Northern Isle Speedway | L76: 0.9 | M76: 2
J77: 59 | K77: Nürburgring 24 Heures | L77: 25.378 | M77: 170
J78: 60 | K78: Nürburgring Nordschleife | L78: 20.832 | M78: 154
J79: 61 | K79: Nürburgring piste GP | L79: 5.148 | M79: 16
J80: 62 | K80: Red Bull Ring | L80: 4.318 | M80: 10
J81: 63 | K81: Red Bull Ring - Court | L81: 2.336 | M81: 6
J82: 64 | K82: Sainte-Croix A | L82: 9.477 | M82: 20
J83: 65 | K83: Sainte-Croix A - Inversé | L83: 9.477 | M83: 20
J84: 66 | K84: Sainte-Croix B | L84: 7.062 | M84: 16
J85: 67 | K85: Sainte-Croix B - Inversé | L85: 7.062 | M85: 16
J86: 68 | K86: Sainte-Croix C | L86: 10.825 | M86: 23
J87: 69 | K87: Sainte-Croix C - Inversé | L87: 10.825 | M87: 26
J88: 70 | K88: Sardegna - Piste A | L88: 5.113 | M88: 15
J89: 71 | K89: Sardegna - Piste A - Inversé | L89: 5.113 | M89: 15
J90: 72 | K90: Sardegna - Piste B | L90: 3.893 | M90: 15
J91: 73 | K91: Sardegna - Piste B - Inversé | L91: 3.893 | M91: 15
J92: 74 | K92: Sardegna - Piste C | L92: 2.661 | M92: 15
J93: 75 | K93: Sardegna - Piste C - Inversé | L93: 2.661 | M93: 15
J94: 76 | K94: Sardegna - Terre - Éoliennes | L94: 3.31 | M94: 14
J95: 77 | K95: Sardegna - Terre - Éoliennes - Inversé | L95: 3.31 | M95: 14
J96: 78 | K96: Spa-Francorchamps | L96: 7.004 | M96: 20
J97: 79 | K97: Spa-Francorchamps - 24h | L97: 7.004 | M97: 20
J98: 80 | K98: Special Stage Route X | L98: 30.283 | M98: 4
J99: 81 | K99: Suzuka Circuit | L99: 5.808 | M99: 17
J100: 82 | K100: Suzuka Circuit - parcourt Est | L100: 2.243 | M100: 6
J101: 83 | K101: Tokyo Expressway - Est dans le sens horaire | L101: 7.192 | M101: 12
J102: 84 | K102: Tokyo Expressway - Centrale dans le sens antihoraire | L102: 4.369 | M102: 12
J103: 85 | K103: Tokyo Expressway - Centrale dans le sens horaire | L103: 4.405 | M103: 12
J104: 86 | K104: Tokyo Expressway - Est dans le sens antihoraire | L104: 7.301 | M104: 12
J105: 87 | K105: Tokyo Expressway - Sud dans le sens antihoraire | L105: 5.201 | M105: 17
J106: 88 | K106: Tokyo Expressway - Sud dans le sens horaire | L106: 6.56 | M106: 16
J107: 89 | K107: Trial Mountain circuit | L107: 5.434 | M107: 15
J108: 90 | K108: Trial Mountain Circuit - Inversé | L108: 5.434 | M108: 15
J109: 91 | K109: Tsukuba Circuit | L109: 2.045 | M109: 14
J110: 92 | K110: Watkins Glen - Parcours court | L110: 3.942 | M110: 8
J111: 93 | K111: Watkins Glen - Parcours long | L111: 5.423 | M111: 11
J112: 94 | K112: WeatherTech Raceway Laguna Seca | L112: 3.6 | M112: 12
J113: 95 | K113: Willow Springs - Big Willow | L113: 3.951 | M113: 9
J114: 96 | K114: Willow Springs - Horse Thief Mile | L114: 1.624 | M114: 12
J115: 97 | K115: Willow Springs - Horse Thief Mile - Inversé | L115: 1.624 | M115: 12
J116: 98 | K116: Willow Springs - Streets of Willow Springs | L116: 2.675 | M116: 14
J117: 99 | K117: Willow Springs - Streets of Willow Springs - Inversé | L117: 2.675 | M117: 14

Sheet Véhicules
B2: Cliquez sur un modèle de voiture pour accéder à ses caractéristiques | O2: =B455 -> 451
B4: N° | C4: Catégorie | D4: Marque | E4: Modèle | F4: Dernière mise à jour : | I4: version | J4: 1.25 | K4: Gran Turismo 7
B5: 1 | C5: No Gr | D5: Abarth | E5: 1500 Biposto Bertone B.A.T 1 '52
B6: 2 | C6: No Gr | D6: Abarth | E6: 500 '09
B7: 3 | C7: No Gr | D7: Abarth | E7: 595 SS '70
B8: 4 | C8: Gr.4 | D8: Alfa Romeo | E8: 155 2.5 V6 TI '93
B9: 5 | C9: No Gr | D9: Alfa Romeo | E9: 4C '14
B10: 6 | C10: Gr.3 | D10: Alfa Romeo | E10: 4C Gr.3
B11: 7 | C11: No Gr | D11: Alfa Romeo | E11: 4C Gr.3 Road Car
B12: 8 | C12: Gr.4 | D12: Alfa Romeo | E12: 4C Gr.4
B13: 9 | C13: No Gr | D13: Alfa Romeo | E13: 8C Competizione '08
B14: 10 | C14: No Gr | D14: Alfa Romeo | E14: GIULIA TZ2 carrozzata da ZAGATO '65
B15: 11 | C15: No Gr | D15: Alfa Romeo | E15: MiTo '09
B16: 12 | C16: No Gr | D16: Alfa Romeo | E16: 8C 2900B Touring Berlinetta '38
B17: 13 | C17: No Gr | D17: Alpine | E17: A110 '17
B18: 14 | C18: No Gr | D18: Alpine | E18: A110 '72
B19: 15 | C19: No Gr | D19: Alpine | E19: A220 Race Car '68
B20: 16 | C20: No Gr | D20: Alpine | E20: Alpine VGT
B21: 17 | C21: Gr.1 | D21: Alpine | E21: Alpine VGT '17
B22: 18 | C22: No Gr | D22: Alpine | E22: Alpine VGT Race
B23: 19 | C23: No Gr | D23: AMG | E23: 300 SEL 6.8 AMG '71
B24: 20 | C24: No Gr | D24: AMG | E24: A 45 AMG '13
B25: 21 | C25: Gr.2 | D25: AMG | E25: CLK-LM '98
B26: 22 | C26: No Gr | D26: AMG | E26: Mercedes-AMG C 63 S '15
B27: 23 | C27: No Gr | D27: AMG | E27: Mercedes-AMG GT Black Series '20
B28: 24 | C28: No Gr | D28: AMG | E28: Mercedes-AMG GT R '17
B29: 25 | C29: No Gr | D29: AMG | E29: Mercedes-AMG GT S '15
B30: 26 | C30: No Gr | D30: AMG | E30: Mercedes-AMG GT Safety Car
B31: 27 | C31: Gr.3 | D31: AMG | E31: Mercedes-AMG GT3 '16
B32: 28 | C32: No Gr | D32: AMG | E32: Mercedes-Benz AMG VGT
B33: 29 | C33: No Gr | D33: AMG | E33: Mercedes-Benz AMG VGT Racing Series
B34: 30 | C34: No Gr | D34: AMG | E34: SLS AMG '10
B35: 31 | C35: Gr.3 | D35: AMG | E35: SLS AMG GT3 '11
B36: 32 | C36: Gr.4 | D36: AMG | E36: SLS AMG GR.4
B37: 33 | C37: No Gr | D37: Amuse | E37: Amuse NISMO 380RS Super Leggera
B38: 34 | C38: No Gr | D38: Amuse | E38: S2000 GT1 Turbo
B39: 35 | C39: No Gr | D39: Aston Martin | E39: DB11 '16
B40: 36 | C40: No Gr | D40: Aston Martin | E40: DB3S '53
B41: 37 | C41: No Gr | D41: Aston Martin | E41: DB5 '64
B42: 38 | C42: Gr.3 | D42: Aston Martin | E42: DBR9 GT1 '10
B43: 39 | C43: No Gr | D43: Aston Martin | E43: DP-100 VGT
B44: 40 | C44: No Gr | D44: Aston Martin | E44: One-77 '11
B45: 41 | C45: Gr.3 | D45: Aston Martin | E45: V12 Vantage GT3 '12
B46: 42 | C46: Gr.4 | D46: Aston Martin | E46: V8 Vantage GR.4
B47: 43 | C47: No Gr | D47: Aston Martin | E47: V8 Vantage S '15
B48: 44 | C48: No Gr | D48: Aston Martin | E48: Vulcan '16
B49: 45 | C49: Gr.1 | D49: Audi | E49: Audi VGT
B50: 46 | C50: No Gr | D50: Audi | E50: Audi e-tron VGT
B51: 47 | C51: Gr.1 | D51: Audi | E51: R18 '16
B52: 48 | C52: Gr.1 | D52: Audi | E52: R18 TDI '11
B53: 49 | C53: No Gr | D53: Audi | E53: R8 4.2 '07
B54: 50 | C54: Gr.3 | D54: Audi | E54: R8 LMS '15
B55: 51 | C55: Gr.3 | D55: Audi | E55: R8 LMS Evo '19
B56: 52 | C56: Gr.B | D56: Audi | E56: Sport Quattro S1 Pikes Peak '87
B57: 53 | C57: No Gr | D57: Audi | E57: TT Coupé 3.2 quattro '03
B58: 54 | C58: Gr.4 | D58: Audi | E58: TT CUP '16
B59: 55 | C59: No Gr | D59: Audi | E59: TTS Coupé '14
B60: 56 | C60: No Gr | D60: Autobianchi | E60: A112 Abarth '85
B61: 57 | C61: No Gr | D61: BAC | E61: Mono '16
B62: 58 | C62: No Gr | D62: BMW | E62: 3.0 CSL '71
B63: 59 | C63: No Gr | D63: BMW | E63: 3.0 CSL '73
B64: 60 | C64: No Gr | D64: BMW | E64: BMW VGT
B65: 61 | C65: No Gr | D65: BMW | E65: BMW M2 Competition '18
B66: 62 | C66: No Gr | D66: BMW | E66: M3 '03
B67: 63 | C67: No Gr | D67: BMW | E67: M3 '07
B68: 64 | C68: No Gr | D68: BMW | E68: M3 '89
B69: 65 | C69: Gr.3 | D69: BMW | E69: M3 GT '11
B70: 66 | C70: No Gr | D70: BMW | E70: M3 Sport Evolution '89
B71: 67 | C71: No Gr | D71: BMW | E71: M4 '14
B72: 68 | C72: Gr.4 | D72: BMW | E72: M4 GR.4
B73: 69 | C73: No Gr | D73: BMW | E73: M4 Safety Car
B74: 70 | C74: Gr.3 | D74: BMW | E74: M6 GT3 Endurance Model '16
B75: 71 | C75: Gr.3 | D75: BMW | E75: M6 GT3 Sprint Model '16
B76: 72 | C76: Gr.2 | D76: BMW | E76: McLaren F1 GTR Race Car '97
B77: 73 | C77: Gr.3 | D77: BMW | E77: Z4 GT3 '11
B78: 74 | C78: No Gr | D78: BMW | E78: Z8 '01
B79: 75 | C79: No Gr | D79: BMW | E79: i3 '15
B80: 76 | C80: No Gr | D80: Bugatti | E80: Bugatti VGT
B81: 77 | C81: Gr.1 | D81: Bugatti | E81: Bugatti VGT (GR.1)
B82: 78 | C82: No Gr | D82: Bugatti | E82: Veyron 16.4 '13
B83: 79 | C83: Gr.4 | D83: Bugatti | E83: Veyron Gr.4
B84: 80 | C84: No Gr | D84: Chaparral | E84: 2J '70
B85: 81 | C85: No Gr | D85: Chaparral | E85: Chevrolet Chaparral 2X VGT
B86: 82 | C86: No Gr | D86: Chevrolet | E86: Camaro SS '16
B87: 83 | C87: No Gr | D87: Chevrolet | E87: Camaro Z28 '69
B88: 84 | C88: No Gr | D88: Chevrolet | E88: Camaro ZL1 1LE Package '18
B89: 85 | C89: No Gr | D89: Chevrolet | E89: Corvette (C2) '63
B90: 86 | C90: No Gr | D90: Chevrolet | E90: Corvette C7 '14
B91: 87 | C91: Gr.3 | D91: Chevrolet | E91: Corvette C7 Gr.3
B92: 88 | C92: No Gr | D92: Chevrolet | E92: Corvette C7 Gr.3 Road Car
B93: 89 | C93: Gr.4 | D93: Chevrolet | E93: Corvette C7 Gr.4
B94: 90 | C94: No Gr | D94: Chevrolet | E94: Corvette C7 ZR1 '19
B95: 91 | C95: No Gr | D95: Chevrolet | E95: Corvette Convertible (C3) '69
B96: 92 | C96: No Gr | D96: Chevrolet | E96: Corvette Stingray (C3) '69
B97: 93 | C97: No Gr | D97: Chevrolet | E97: Corvette Stingray Racer Concept '59
B98: 94 | C98: No Gr | D98: Chevrolet | E98: Corvette ZR-1 (C4) '89
B99: 95 | C99: No Gr | D99: Chevrolet | E99: Corvette ZR1 (C6) '09
B100: 96 | C100: No Gr | D100: Chris Holstrom Concepts | E100: CHC 1967 Chevy Nova
B101: 97 | C101: Gr.4 | D101: Citroen | E101: GT BY Citroën GR.4
B102: 98 | C102: Gr.3 | D102: Citroen | E102: GT by Citroën Race Car (Gr.3)
B103: 99 | C103: No Gr | D103: Citroen | E103: GT by Citroën Road Car
B104: 100 | C104: No Gr | D104: Daihatsu | E104: Copen '02
B105: 101 | C105: No Gr | D105: Daihatsu | E105: COPEN RJ VGT
B106: 102 | C106: No Gr | D106: De Tomaso | E106: Pantera '71
B107: 103 | C107: No Gr | D107: De Tomaso | E107: Mangusta '69
B108: 104 | C108: No Gr | D108: De Tomaso | E108: Mangusta (Christian Dior)
B109: 105 | C109: No Gr | D109: DMC | E109: DeLorean S2 '04
B110: 106 | C110: No Gr | D110: Dodge | E110: Challenger R/T '70
B111: 107 | C111: No Gr | D111: Dodge | E111: Charger SRT Hellcat '15
B112: 108 | C112: No Gr | D112: Dodge | E112: Charger SRT Hellcat Safety Car
B113: 109 | C113: No Gr | D113: Dodge | E113: SRT Tomahawk GTS-R VGT
B114: 110 | C114: No Gr | D114: Dodge | E114: SRT Tomahawk S VGT
B115: 111 | C115: Gr.1 | D115: Dodge | E115: SRT Tomahawk VGT (Gr.1)
B116: 112 | C116: No Gr | D116: Dodge | E116: SRT Tomahawk X VGT
B117: 113 | C117: No Gr | D117: Dodge | E117: Super Bee '70
B118: 114 | C118: No Gr | D118: Dodge | E118: Viper GTS '02
B119: 115 | C119: No Gr | D119: Dodge | E119: Viper GTS '13
B120: 116 | C120: Gr.4 | D120: Dodge | E120: Viper Gr.4
B121: 117 | C121: Gr.3 | D121: Dodge | E121: Viper SRT GT3-R '15
B122: 118 | C122: No Gr | D122: Dodge | E122: Viper SRT10 Coupe '06
B123: 119 | C123: No Gr | D123: DS Automobiles | E123: DS3 Racing '11
B124: 120 | C124: No Gr | D124: Eckert's Rod & Customs | E124: Mach Forty
B125: 121 | C125: No Gr | D125: Ferrari | E125: 250 GT Berlinetta passo corto '61
B126: 122 | C126: No Gr | D126: Ferrari | E126: 250 GTO '62
B127: 123 | C127: No Gr | D127: Ferrari | E127: 308 GTB '75
B128: 124 | C128: No Gr | D128: Ferrari | E128: 330 P4 '67
B129: 125 | C129: No Gr | D129: Ferrari | E129: 365 GTB4 '71
B130: 126 | C130: No Gr | D130: Ferrari | E130: 458 Italia '09
B131: 127 | C131: Gr.3 | D131: Ferrari | E131: 458 Italia GT3 '13
B132: 128 | C132: Gr.4 | D132: Ferrari | E132: 458 Italia Gr.4
B133: 129 | C133: No Gr | D133: Ferrari | E133: 500 Mondial Pinin Farina Coupe '54
B134: 130 | C134: No Gr | D134: Ferrari | E134: 512 BB '76
B135: 131 | C135: No Gr | D135: Ferrari | E135: Dino 246 GT '71
B136: 132 | C136: No Gr | D136: Ferrari | E136: Enzo Ferrari '02
B137: 133 | C137: No Gr | D137: Ferrari | E137: F12berlinetta '12
B138: 134 | C138: No Gr | D138: Ferrari | E138: F40 '92
B139: 135 | C139: No Gr | D139: Ferrari | E139: F430 '06
B140: 136 | C140: No Gr | D140: Ferrari | E140: F50 '95
B141: 137 | C141: No Gr | D141: Ferrari | E141: F8 Tributo '19
B142: 138 | C142: No Gr | D142: Ferrari | E142: GTO '84
B143: 139 | C143: No Gr | D143: Ferrari | E143: LaFerrari '13
B144: 140 | C144: No Gr | D144: Ferrari | E144: Testarossa '91
B145: 141 | C145: No Gr | D145: Ferrari | E145: FXX K' '14
B146: 142 | C146: No Gr | D146: Fiat | E146: 500 1.2 8V Lounge SS '08
B147: 143 | C147: No Gr | D147: Fiat | E147: 500 F '68
B148: 144 | C148: No Gr | D148: Ford | E148: F-150 SVT Raptor '11
B149: 145 | C149: Gr.B | D149: Ford | E149: Focus Gr.B Rally Car
B150: 146 | C150: No Gr | D150: Ford | E150: Focus RS '18
B151: 147 | C151: No Gr | D151: Ford | E151: Focus ST '15
B152: 148 | C152: No Gr | D152: Ford | E152: Ford GT '06
B153: 149 | C153: No Gr | D153: Ford | E153: Ford GT '17
B154: 150 | C154: Gr.3 | D154: Ford | E154: GT LM Race Car Spec II
B155: 151 | C155: Gr.3 | D155: Ford | E155: GT LM Spec II Test Car
B156: 152 | C156: Gr.3 | D156: Ford | E156: GT Race Car '18
B157: 153 | C157: No Gr | D157: Ford | E157: GT40 Mark I '66
B158: 154 | C158: No Gr | D158: Ford | E158: Mark IV Race Car '67
B159: 155 | C159: No Gr | D159: Ford | E159: Mustang Boss 429 '69
B160: 156 | C160: No Gr | D160: Ford | E160: Mustang GT '15
B161: 157 | C161: Gr.3 | D161: Ford | E161: Mustang Gr.3
B162: 158 | C162: No Gr | D162: Ford | E162: Mustang Gr.3 Road Car
B163: 159 | C163: Gr.4 | D163: Ford | E163: Mustang Gr.4
B164: 160 | C164: Gr.B | D164: Ford | E164: Mustang Gr.B Rally Car
B165: 161 | C165: No Gr | D165: Ford | E165: Mustang Mach 1 '71
B166: 162 | C166: No Gr | D166: Ford | E166: Ford Sierra RS 500 Cosworth '87
B167: 163 | C167: No Gr | D167: Ford | E167: Shelby GT350R '16
B168: 164 | C168: No Gr | D168: Ford | E168: Roadster
B169: 165 | C169: No Gr | D169: Genesis | E169: G70 3.3T AWD P.Package '22
B170: 166 | C170: Gr.4 | D170: Genesis | E170: G70 GR4
B171: 167 | C171: Gr.3 | D171: Genesis | E171: Genesis X GR3
B172: 168 | C172: No Gr | D172: Gran Turismo | E172: Racing Kart 125 Shifter
B173: 169 | C173: SF1 | D173: Gran Turismo | E173: F1500T-A
B174: 170 | C174: No Gr | D174: Gran Turismo | E174: Red Bull X2014 Junior
B175: 171 | C175: No Gr | D175: Gran Turismo | E175: Red Bull X2014 Standard
B176: 172 | C176: No Gr | D176: Gran Turismo | E176: Red Bull X2019 Competition
B177: 173 | C177: No Gr | D177: Greddy | E177: Greddy Fugu Z
B178: 174 | C178: No Gr | D178: Honda | E178: 2&4 powered by RC213V
B179: 175 | C179: No Gr | D179: Honda | E179: Beat '91
B180: 176 | C180: No Gr | D180: Honda | E180: Civic Type R (EK) '97
B181: 177 | C181: No Gr | D181: Honda | E181: Civic Type R (EK) '98
B182: 178 | C182: No Gr | D182: Honda | E182: Civic Type R (EK) Touring Car
B183: 179 | C183: No Gr | D183: Honda | E183: Civic Type R (FK2) '15
B184: 180 | C184: No Gr | D184: Honda | E184: Civic Type R Limited Edition (FK8) '20
B185: 181 | C185: No Gr | D185: Honda | E185: Fit Hybrid '14
B186: 182 | C186: No Gr | D186: Honda | E186: Honda Sports VGT
B187: 183 | C187: No Gr | D187: Honda | E187: Integra Type R (DC2) '95
B188: 184 | C188: No Gr | D188: Honda | E188: Integra Type R (DC2) '98
B189: 185 | C189: No Gr | D189: Honda | E189: NSX '17
B190: 186 | C190: Gr.2 | D190: Honda | E190: NSX CONCEPT-GT '16
B191: 187 | C191: Gr.2 | D191: Honda | E191: NSX GT500 '08
B192: 188 | C192: Gr.3 | D192: Honda | E192: NSX Gr.3
B193: 189 | C193: Gr.4 | D193: Honda | E193: NSX Gr.4
B194: 190 | C194: Gr.B | D194: Honda | E194: NSX Gr.B Rally Car
B195: 191 | C195: No Gr | D195: Honda | E195: NSX Type R '02
B196: 192 | C196: No Gr | D196: Honda | E196: NSX Type R '92
B197: 193 | C197: No Gr | D197: Honda | E197: S2000 '99
B198: 194 | C198: No Gr | D198: Honda | E198: S660 '15
B199: 195 | C199: No Gr | D199: Honda | E199: S800 '66
B200: 196 | C200: SF1 | D200: Honda | E200: SF19 Super Formula / Honda '19
B201: 197 | C201: No Gr | D201: Hyundai | E201: Genesis Coupe 3.8 '13
B202: 198 | C202: Gr.3 | D202: Hyundai | E202: Genesis Gr.3
... 253 more rows

Sheet Voitures
B2: Catégorie | G2: Rechercher : ctrl+F
B4: Gr1_
B5: Gr2_
B6: Gr3_
B7: Gr4_
B8: GrB
B9: SF
B10: No_Gr
D12: mise à jour 1.26 GT
D13: Gr1_
D14: Alpine Alpine VGT '17
D15: Audi Audi VGT
D16: Audi R18 '16
D17: Audi R18 TDI '11
D18: Bugatti Bugatti VGT (GR.1)
D19: Dodge SRT Tomahawk VGT (Gr.1)
D20: Hyundai HYUNDAI N 2025 VGT (Gr.1)
D21: Jaguar XJR-9 '88
D22: Mazda 787B '91
D23: Mazda LM55 VGT (Gr.1)
D24: McLaren McLaren VGT (Gr.1)
D25: Mercedes-Benz Sauber Mercedes C9 '89
D26: Nissan GT-R LM NISMO '15
D27: Nissan R92CP '92
D28: Peugeot 908 HDi FAP '10
D29: Peugeot L750R HYbrid VGT 2017
D30: Porsche 919 Hybrid '16
D31: Porsche 962 C '88
D32: Toyota TS030 Hybrid '12
D33: Toyota TS050 - Hybrid '16
D34: Toyota GR010 HYBRID ‘21
D36: Gr2_
D37: AMG CLK-LM '98
D38: BMW McLaren F1 GTR Race Car '97
D39: Honda NSX CONCEPT-GT '16
D40: Honda NSX GT500 '08
D41: Lexus RC F GT500 '16
D42: Lexus SC430 GT500 '08
D43: Nissan GT-R GT500 '08
D44: Nissan GT-R NISMO GT500 '16
D46: Gr3_
D47: AMG Mercedes-AMG GT3 '16
D48: AMG SLS AMG GT3 '11
D49: Alfa Romeo 4C Gr.3
D50: Aston Martin DBR9 GT1 '10
D51: Aston Martin V12 Vantage GT3 '12
D52: Audi R8 LMS '15
D53: Audi R8 LMS Evo '19
D54: BMW M3 GT '11
D55: BMW M6 GT3 Endurance Model '16
D56: BMW M6 GT3 Sprint Model '16
D57: BMW Z4 GT3 '11
D58: Chevrolet Corvette C7 Gr.3
D59: Citroen GT by Citroën Race Car (Gr.3)
D60: Dodge Viper SRT GT3-R '15
D61: Ferrari 458 Italia GT3 '13
D62: Ford GT LM Race Car Spec II
D63: Ford GT LM Spec II Test Car
D64: Ford GT Race Car '18
D65: Ford Mustang Gr.3
D66: Genesis Genesis X GR3
D67: Honda NSX Gr.3
D68: Hyundai Genesis Gr.3
D69: Jaguar F-Type Gr.3
D70: Lamborghini Huracán GT3 '15
D71: Lexus RC F GT3 '17
D72: Lexus RC F GT3 prototype '16
D73: Mazda Atenza Gr.3
D74: Mazda RX-VISION GT3 CONCEPT
D75: Mazda RX-VISION GT3 CONCEPT Stealth Model
D76: McLaren 650S GT3 '15
D77: McLaren McLaren F1 GTR - BMW '95
D78: Mitsubishi Lancer Evolution Final Gr.3
D79: Nissan GT-R GT500 '99
D80: Nissan GT-R NISMO GT3 '13
D81: Nissan GT-R NISMO GT3 '18
D82: Peugeot PEUGEOT VGT Gr.3
D83: Peugeot RCZ Gr.3
D84: Porsche 911 RSR (991) '17
D85: Renault R.S.01 GT3 '16
D86: Subaru WRX Gr.3
D87: Toyota FT-1 VGT (Gr.3)
D88: Toyota GR Supra Racing Concept '18
D89: Toyota Supra GT500 '97
D90: Volkswagen Beetle Gr.3
D91: Volkswagen GTI VGT (Gr.3)
D92: Subaru BRZ GT300 '21
D93: Suzuki Suzuki VGT (Gr.3)
D94: Nissan Skyline Super Silhouette '84
D96: Gr4_
D97: AMG SLS AMG GR.4
D98: Alfa Romeo 155 2.5 V6 TI '93
D99: Alfa Romeo 4C Gr.4
D100: Aston Martin V8 Vantage GR.4
D101: Audi TT CUP '16
D102: BMW M4 GR.4
D103: Bugatti Veyron Gr.4
D104: Chevrolet Corvette C7 Gr.4
D105: Citroen GT BY Citroën GR.4
D106: Dodge Viper Gr.4
D107: Ferrari 458 Italia Gr.4
D108: Ford Mustang Gr.4
D109: Genesis G70 GR4
D110: Honda NSX Gr.4
D111: Hyundai Genesis Gr.4
D112: Jaguar F-Type Gr.4
D113: Lamborghini Huracán Gr.4
D114: Lexus RC F Gr.4
D115: Mazda Atenza Gr.4
D116: McLaren 650S Gr.4
D117: Mitsubishi Lancer Evolution Final Gr.4
D118: Nissan GT-R GR.4
D119: Nissan Silvia spec-R Aero (S15) Touring Car
D120: Peugeot RCZ Gr.4
D121: Porsche Cayman GT4 Clubsport '16
D122: Renault Mégane Gr.4
D123: Renault Mégane Trophy '11
D124: Subaru WRX Gr.4
D125: Suzuki Swift Sport Gr.4
D126: Toyota 86 Gr.4
D127: Toyota GR Supra Race Car '19
D128: Volkswagen Scirocco Gr.4
D130: GrB
D131: Audi Sport Quattro S1 Pikes Peak '87
D132: Ford Focus Gr.B Rally Car
D133: Ford Mustang Gr.B Rally Car
D134: Honda NSX Gr.B Rally Car
D135: Hyundai Genesis GR.B Rally Car
D136: Mitsubishi Lancer Evolution Final Gr.B Rally Car
D137: Nissan GT-R Gr.B Rally Car
D138: Peugeot 205 Turbo 16 Evolution 2 '86
D139: Peugeot RCZ Gr.B Rally Car
D140: Subaru WRX Gr.B Rally Car
D141: Toyota 86 Gr.B Rally Car
D143: SF
D144: Gran Turismo F1500T-A
D145: Gran Turismo Red Bull X2014 Junior
D146: Gran Turismo Red Bull X2014 Standard
D147: Gran Turismo Red Bull X2019 Competition
D148: McLaren McLaren F1 '94
D149: Honda SF19 Super Formula / Honda '19
D150: Toyota SF19 Super Formula / Toyota '19
D152: No_Gr
D153: AMG 300 SEL 6.8 AMG '71
D154: AMG A 45 AMG '13
D155: AMG Mercedes-AMG C 63 S '15
D156: AMG Mercedes-AMG GT Black Series '20
D157: AMG Mercedes-AMG GT R '17
D158: AMG Mercedes-AMG GT S '15
D159: AMG Mercedes-AMG GT Safety Car
D160: AMG Mercedes-Benz AMG VGT
D161: AMG Mercedes-Benz AMG VGT Racing Series
D162: AMG SLS AMG '10
D163: Abarth 1500 Biposto Bertone B.A.T 1 '52
D164: Abarth 500 '09
D165: Abarth 595 SS '70
D166: Alfa Romeo 4C '14
D167: Alfa Romeo 4C Gr.3 Road Car
D168: Alfa Romeo 8C Competizione '08
D169: Alfa Romeo GIULIA TZ2 carrozzata da ZAGATO '65
D170: Alfa Romeo MiTo '09
D171: Alpine A110 '17
D172: Alpine A110 '72
D173: Alpine A220 Race Car '68
D174: Alpine Alpine VGT
D175: Alpine Alpine VGT Race
D176: Amuse Amuse NISMO 380RS Super Leggera
D177: Amuse S2000 GT1 Turbo
D178: Aston Martin DB11 '16
D179: Aston Martin DB3S '53
D180: Aston Martin DB5 '64
D181: Aston Martin DP-100 VGT
D182: Aston Martin One-77 '11
D183: Aston Martin V8 Vantage S '15
D184: Aston Martin Vulcan '16
D185: Audi Audi e-tron VGT
D186: Audi R8 4.2 '07
D187: Audi TT Coupé 3.2 quattro '03
D188: Audi TTS Coupé '14
D189: Autobianchi A112 Abarth '85
D190: BMW 3.0 CSL '71
D191: BMW 3.0 CSL '73
D192: BMW BMW VGT
D193: BMW M2 Competition '18 | E193: 2022-11-01
D194: BMW M3 '03
D195: BMW M3 '07
D196: BMW M3 '89
D197: BMW M3 Sport Evolution '89
D198: BMW M4 '14
D199: BMW M4 Safety Car
D200: BMW Z8 '01
D201: BMW i3 '15
D202: BAC Mono '16
D203: Bugatti Bugatti VGT
D204: Bugatti Veyron 16.4 '13
D205: Chaparral 2J '70
D206: Chaparral Chevrolet Chaparral 2X VGT
D207: Chevrolet Camaro SS '16
D208: Chevrolet Camaro Z28 '69
D209: Chevrolet Camaro ZL1 1LE Package '18
... 267 more rows

Sheet Notice
A1: NOTICE D'UTILISATION
B3: Application pour l'élaboration et le choix de stratégie de course
B4: Utilisable pour des courses dont la durée est définie par une limite de temps ou un nombre de tours,
B5: En préalable :
B6: ! A l'ouverture du fichier si le message ci-dessous apparait, cliquez sur | Q6: Astuce d'affichage pour un meilleur confort en mode course
B8: ! Pour utiliser pleinement le comparateur vous devez disposer d'un fichier Excel qui accepte les macros (fichier xlm)
B9: A l'ouverture du comparateur si les messages ci-dessous apparaissent
B15: Vous devez activer les macros :
B22: LE COMPARATEUR DE STRATEGIE EN 4 ETAPES
B38: 1) Introduction des paramètres de la course :
B39: Les renseignements à indiquer dans les cellules fonds blancs | G39: facultatif | H39: sont à titre informatifs (pas d'obligation de saisie).
B41: Les renseignements à indiquer dans les cellules fonds jaunes | G41: obligatoire | H41: doivent être obligatoirement complétés.
B42: NB : une notification vous indiques les saisies obligatoires et celles qui n'ont qu'une valeur informative
B44: 2) Effacer les paramètres saisies :
B45: Cliquez sur les boutons de commandes pour effacer vos données saisies, (strat, chronos etc..)
B47: une confirmation vous sera demandée. ATTENTION si vous cliquer sur "oui" la suppression est irréversible.
B52: 3) Obtenir des informations ou renseignements sur comment saisir les données :
B53: En cliquant sur les cellules
B54: vous pouvez obtenir des informations ou des explications
B55: complémentaires.
E57: Exemple :
B61: 4) Protection des cellules de calcul et des formules :
B62: ATTENTION si vous déverrouillez la protection des feuilles vous risquez de perdre des formules de calcul et d'altérer les résultats.
B63: Utilisez le comparateur uniquement en mode protégé !
B64: 5) Saisie des informations courses
C65: A l'ouverture du comparateur :
L67: a) Indiquer à l'aide du menu déroulant le circuit
L68: b) Choisissez à l'aide du menu déroulant la durée en nbr de tours ou en temps
L69: c) Indiquez ensuite la valeur tours ou temps dans la cellule correspondante
N70: si temps format de saisie : | R70: 1:30 pour 1h30 mn
L72: d) à l'aide du menu déroulant indiquez les gommes disponibles pour la course (3 choix possibles)
L73: e) indiquer si l'utilisation est libre ou obligatoire
L74: f) indiquez l'autonomie max (hors éco)
L75: g) indiquez la vitesse de ravitaillement et la jauge au départ de la course (valeur par défaut 100 litres)
L78: Corriger les temps d'arrêts aux stands par rapport au circuit
L79: Indiquer vos temps moyens chrono au tour par types de gommes
L82: Ces informations sont facultatives
L83: Elles ont une valeur informative
L84: En choisissant une catégorie, vous avez la liste des modèles correspondant dans la cellule "modelé"
B87: 6) Calcul des temps d'arrêt aux stands :
B88: Des temps sont indiqués par défaut mais en fonction des circuits et des mises à jour de Gran Turismo il est nécessaire de les réajuster.
B89: Dans tous les cas il sera judicieux de les vérifier. Le temps d'arrêt au stand est un facteur important dans une stratégie de course !
B91: Mode de calcul utilisé pour le calcul des temps d'arrêts :
K92: t3 : se calcul automatiquement lorsque vous indiquez la vitesse de ravitaillement dans la page d'accueil.
K96: Pour obtenir le temps t1 : chronométrer le temps de passage de votre voiture entre l'entrée et la sortie des stands en condition course.
K100: Pour obtenir t2 : faite un arrêt au stand en changeant uniquement les pneus et notez le temps affiché par le jeu en sortie de stands
B107: 7) Elaboration stratégie de course :
B108: A vous de jouer ! Avec l'aide d'une ou des trois interfaces, Strat 1, Strat 2 et Strat 3 :
C109: a) choisissez le nombre de tours entre chaque pit (le besoin en fuel se calculera automatiquement), et si vous dépassez la capacité
D110: maxi du réservoir un message d'alerte vous préviendra .
C111: b) choisissez le ou les types de pneumatiques
B112: Saisie du tableau de bord - 2 à 3 informations à complèter à chaque pit :
B113: obligatoire | C113: 1) | D113: le nombre de tours entre chaque pit (dans l'exemple : 5; 6; 7; 10)
B114: obligatoire | C114: 2) | D114: "Gommes" le type de pneumatique à l'aide de la liste déroulante (dans l'exemple : médium, PIT sans changement, soft, hard)
B115: si besoin | C115: 3) | D115: l'utilisation éco fuel si votre strat vous impose de rouler en mode éco (dans l'exemple pour une autonomie max 8 tours : utilisation mode éco à 2 au PIT 3)
D116: (utilisation conduite éco voir chapitre 10)
B117: Exemple tableau de bord :
B134: Interprétation du tableau de bord ci-dessus pour une autonomie de 8 tours :
B135: 1ère colonne, départ : pneus médium, absence de conduite éco, 5 tours à faire avant le 1er PIT
B136: PIT 1 : on ne change pas de gomme (reste en médium) pour effectuer 6 tours avant le second PIT. Refuel jauge du jeu à 75% ou 6 tours.
B137: PIT2 : passage en gomme tendre pour effectuer 7 tours avant le PIT3. refuel jauge du jeu à 88% ou 7 tours
B138: PIT 3 : passage en gomme dur pour effectuer 10 tours avant l'arrivée. Refuel à 100%, 8 tours et conduite en mode éco niveau 2
B139: Arrivée au tour 28 après 58 minutes de course.
C140: L'utilisation de la conduite éco fera perdre 12,6 sec en moyenne sur les 10 tours
B141: IMPORTANT : | C141: Les types de pneus sélectionnés dans votre stratégie devront impérativement êtres associés à un temps moyen chrono
C142: Auquel cas les données indiquées seront erronées.
B144: 8) Gestion des pneumatiques :
B145: La gestion des pneumatiques est cruciale. Comprendre la façon dont votre style de pilotage affecte la durée de vie des pneus et tout aussi important
B146: que d'engranger des tours rapides.
B148: Une alerte (couleur de cellule orange) dans la partie "stratégie", ou vous avez saisie le nombre de tours/pit se déclenchera si vous saisissez un nombre de tours supérieur au seuil que vous aurez défini dans la durée de vie ou le pic de performance de vos trains de pneus. (ce qui ne vous empêche pas de passer outre et de conserver le nbr de tours voulu).
B150: Exemple image ci-dessous : PIT 1 pneus soft pour une usure max indiqué à 9 tours. Si vous indiquez 10 tours ou + la cellule se met en alerte pour vous prévenir que vous dépasser le pic de performance.
B162: Renseignez dans la page d'accueil si la monte des types de pneus est libre ou obligatoire
B163: Si vous omettez d'utiliser une gomme obligatoire dans votre stratégie un message d'alerte vous avertira
B164: La cellule "tps moyen" vous indique le temps moyen au tour qui sera pris en compte dans le calcul de votre stratégie soit 2 minutes et 1 seconde dans l'exemple
B166: 9) Carburant / Autonomie :
B167: L'autonomie indiquée dans le jeu réservoir plein peut varier au fur et à mesure que le réservoir se vide et que la voiture gagne en poids.
B168: Le calculateur ne prend pas en compte ce facteur puisqu'il dépend également de votre conduite.
B169: Il est donc nécessaire de faire un essai pour vérifier l'autonomie réelle de votre voiture si vous ne voulez pas avoir de mauvaise surprise le jour de la course !
B170: Si vous choisissez dans votre stratégie un nombre de tours supérieur à l'autonomie maxi que vous avez renseigné dans la page d'accueil, un message d'alerte
B171: s'affichera
B172: NB : Le juste besoin nécessaire de fuel à embarquer se calcul automatiquement pour chacun des PIT. Néanmoins si vous en estimez l'utilité vous pouvez forcer le remplissage en corrigeant la valeur en %
B174: 10) Conduite économique :
B175: Comme dans le jeu GT7 vous avez deux possibilités :
B176: A) | C176: utilisez le compte tour comme indicateur de conduite économe en réalisant votre course ou une partie de votre course
C177: en changeant vos rapport sans monter dans les tours moteur.
C178: trois choix simulés en terme de gain d'autonomie et de perte de temps sont proposés.
B179: Si vous adopter un mode de conduite qui consiste à changer les rapports de vitesses sans monter à fond dans les tours moteur :
B180: sélectionnez dans le menu déroulant "Conduite éco" :
B182: tr/mn 2/3 | C182: correspond à changer les rapports à 2/3 des leds du compte tour
B183: tr/mn1/2 | C183: correspond à changer les rapports à la moitié des leds du compte tour
B184: tr/mn 1/3 | C184: correspond à changer les rapports dès l'appariation 1ère led du compte tour
B185: Le calculateur estimera le gain d'autonomie et la perte de temps / km
B187: B) | C187: utiliser l'économie de fuel disponible dans la fonction du jeu GT7 :
B188: Les choix 2; 3; 4; 5 et 6 du menu déroulant correspondent au mode éco du jeux
B189: GT7 qui consiste à la réduction plus ou moins importante de la puissance du véhicule.
B190: Le simulateur estimera le gain d'autonomie et la perte de temps / km
B191: suivant le niveau de réduction de la puissance moteur sélectionné (1 seul choix par PIT possible)
B193: 10.1) Ajustement autonomie et perte de temps éco par rapport à votre conduite :
B194: Vous avez la possibilité en cliquant sur le bouton | G194: d'affiner l'autonomie et la perte de temps en fonction
B195: de vos essais en modifiant les valeurs par défaut du calculateur.
K197: La modification des valeurs "gain autonomie" agit sur la distance supplémentaire parcourue en fonction du niveau d'éco utilisé
K202: La modification des valeurs "réduction vitesse" agit sur la dégradation des temps en fonction de la vitesse
B210: 11) Comparateur de stratégie :
B211: Lorsque vous avez terminé d'élaborer vos stratégies (jusqu’à 3), vous pouvez les comparer et choisir la meilleure pour cela :
B213: Cliquez sur le bouton pour avoir accès au comparateur de stratégie.
B215: Interprétation du comparateur de stratégie :
B239: La meilleur stratégie sera en principe celle ou la majorité des indicateurs seront verts avec le temps moyen / tour le plus faible et l'indice de risque
B240: le moins élevé.
B241: Le fil conducteur pendant la course est d'être au plus près des temps de références moyens au tour en fonction des types de pneus.
B243: Adopter une stratégie de course ne vous fera pas forcément gagner de temps, mais elle évitera de vous en faire perdre !
B244: Une bonne stratégie vous permettra de prévoir des impondérables comme éviter une panne d'essence…
B245: ou de devoir rouler avec des gommes trop usées et perdre des secondes précieuses…
B246: Cette application vous aidera à élaborer des scénarios pour limiter et optimiser les arrêts aux stands au strict
B247: nécessaire et de rester concentré sur votre course, votre conduite et les points de freinages…
B248: Néanmoins si vos temps chronos au tour sont trop éloignés de vos concurrents elle ne fera pas de miracle !
B251: Imprimer le tableau de bord ou afficher le sur l'écran d'un ordinateur pour suivre votre stratégie pendant la course…
E253: A bientôt sur GT7 !

Sheet usure
A1: Essais libres : | E1: 1 | L1: 2 | S1: 3 | Z1: Usure des gommes
H2: =chronos!G10 -> 8 | O2: =chronos!J15 -> 0 | V2: =chronos!N15 -> 0
Z3: Vous pouvez indiquer pour mémoire l'usure pour chacun des pneus dans les cellules à fonds jaunes. Nombre entier Valeur de 0 à 10
B7: Gommes 1
B9: =chronos!C10 -> 0
G13: =G6 -> 0 | I13: =I6 -> 0 | N13: =N6 -> 0 | P13: =P6 -> 0 | U13: =U6 -> 0 | W13: =W6 -> 0
B19: Gommes 2
B21: =chronos!C12 -> 0
G25: =G18 -> 0 | I25: =I18 -> 0 | N25: =N18 -> 0 | P25: =P18 -> 0 | U25: =U18 -> 0 | W25: =W18 -> 0
B31: Gommes 3
B33: =chronos!C14 -> 0
G37: =G30 -> 0 | I37: =I30 -> 0 | N37: =N30 -> 0 | P37: =P30 -> 0 | U37: =U30 -> 0 | W37: =W30 -> 0
F68: 0 | G68: =H2 -> 8 | H68: =O2 -> 0 | I68: =V2 -> 0
F69: =B9 -> 0 | G69: =(G6+I6)/2 -> 0 | H69: =(N6+P6)/2 -> 0 | I69: =(U6+W6)/2 -> 0 | M69: =F69 -> 0 | N69: =H2 -> 8 | O69: =O2 -> 0 | P69: =V2 -> 0
F70: =B21 -> 0 | G70: =(G18+I18)/2 -> 0 | H70: =(N18+P18)/2 -> 0 | I70: =(U18+W18)/2 -> 0 | M70: =F70 -> 0 | N70: =H2 -> 8 | O70: =O2 -> 0 | P70: =V2 -> 0
F71: =B33 -> 0 | G71: =(G30+I30)/2 -> 0 | H71: =(N30+P30)/2 -> 0 | I71: =(U30+W30)/2 -> 0 | M71: 0 | N71: =H2 -> 8 | O71: =+O2 -> 0 | P71: =V2 -> 0
